{"text_format":"1","workbook":"xlsx","n_sheets":7,"sheets":["INTRO","COUNTRY_INFO","DEC","ALB_MBD","PZQ","SUMMARY","SHIPMENT"],"not_rendered":{"charts":0,"images":3,"macros":1,"external_links":0,"defined_names":3,"comments":7,"pivot_tables":0},"unopened":[],"bounds":{"document_bytes":16777216,"sheet_cells":100000,"rows_first":2000,"rows_last":500,"rows_between":2000,"halvings":0,"cell_chars":16384,"cell_head_chars":4096},"cells_cut":0,"cells_raw":0,"read":"whole","date_system":"1900"}

{"sheet":"INTRO","index":0,"n_rows":50,"n_cols":5,"rows_kept":50,"cut":false,"hidden":false,"merged":[[0,2,0,4],[0,0,0,1],[34,1,34,2],[36,1,36,2],[22,2,23,4],[25,2,26,4],[27,1,27,4],[13,1,13,4],[18,2,18,4],[20,2,20,4],[17,1,17,4],[15,1,15,4],[32,1,32,2],[29,1,29,4],[30,1,30,4],[7,2,7,4],[49,1,49,2],[46,1,46,4],[38,1,38,2],[40,1,40,2],[42,1,42,2],[47,1,47,2],[44,1,44,2],[48,1,48,2],[28,2,28,4],[21,1,21,4],[16,1,16,4],[24,1,24,4],[19,1,19,4],[2,1,2,4],[1,1,1,4],[5,1,5,4],[3,1,3,4],[14,1,14,4],[12,1,12,4],[4,1,4,4],[11,1,11,4],[10,2,10,4],[8,2,8,4],[9,2,9,4]]}
[null,null,"The current version should be used in countries non-endemic for onchocerciasis"]
[null,"Joint request for selected PC medicines"]
[]
[null,"As part of global efforts to accelerate expansion of preventive chemotherapy (PC) for control and elimination of lymphatic filariasis, schistosomiasis and soil-transmitted helminthiases, the World Health Organization (WHO) facilitates the supply of albendazole 400 mg tablets (GSK) to national lymphatic filariasis elimination programmes and national soil-transmitted helminth control programmes; diethylcarbamazine citrate 100 mg tablets (Eisai) to national lymphatic filariasis elimination programmes; mebendazole 500 mg tablets (J&J) for national soil-transmitted helminth control programmes; and praziquantel 600 mg tablets (Merck KGaA)  for school-age children to national schistosomiasis control programmes. WHO also collaborates to supply ivermectin 3 mg tablets (Merck) for onchocerciasis and lymphatic filariasis donation programmes.  \nThis Excel-based tool is designed to assist countries in quantifying the number of tablets of relevant PC medicines required to reach the planned target population and districts for the year of request. Output of the tool is a joint request for PC medicines, which can be printed, signed and submitted to WHO to request these medicines."]
[]
[null,"Structure of the application (worksheets):"]
[]
[null,"INTRO","This worksheet includes guides on how to complete the joint request for selected PC medicines and information about the status of PC for endemic diseases in the country."]
[null,"COUNTRY_INFO","This worksheet includes information about administrative structure of the country, population by age group, status of endemicity for each disease, population requiring PC and planned interventions."]
[null,"DEC, ALB_MBD and PZQ","These worksheets include information about endemic districts targeted for treatment with specified PC medicines, treatment plan, and number of tablets required and requested. "]
[null,"SUMMARY","This worksheet includes summary of number of tablets requested, information about stock, and date for submission of requested medicines. Before generating the report (run macros) please select the medicine for which the report is needed. Follow the same rule to see the number of people to be treated for the specific disease. \nThis worksheet should be printed and submitted as a joint request for selected PC medicines (see the instruction for submission in the SUMMARY worksheet)."]
[]
[null,"Instruction for data entry"]
[]
[null,"Most of the cells in the above-mentioned worksheets include formula that are calculated automatically according to the treatment policy recommended by WHO for each disease.\nSee the link http://www.who.int/neglected_diseases/preventive_chemotherapy/pct_manual/en/index.html"]
[]
[null,"Please enter your data into the cells according to their colour code:"]
[]
[null,null,"White - cell is not protected. Please enter the value of the requested indicator."]
[]
[null,null,"Yellow - cell is protected and includes name of indicator. No data entry required."]
[]
[null,null,"Orange - cell is not protected and includes a drop-down menu. Please select the value from the drop-down list."]
[]
[]
[null,null,"Green - cell is not protected and includes formula. Please change the value only if your data are different from those that are calculated automatically."]
[]
[]
[null,null,"Blue - cell is protected and includes formula. No data entry required."]
[]
[null,"Country data"]
[]
[null,"COUNTRY",null,null,"Botswana"]
[]
[null,"Year for request of the medicine",null,null,2017]
[]
[null,"Is country endemic for lymphatic filariasis (LF)?",null,null,"Non-endemic"]
[]
[null,"Is country endemic for onchocerciasis (ONCHO)?",null,null,"Non-endemic"]
[]
[null,"Is country endemic for soil-transmitted helminthiases (STH)?",null,null,"Endemic"]
[]
[null,"Is country endemic for schistosomiasis (SCH)?",null,null,"Endemic but PC is not required"]
[]
[null,"How many administrative units in the country?",null,null,24]
[]
[null,"If demographical data at the second administrative level are not available by age group, please enter the proportion (%) of population by age group in the country. If data are available, please leave these cells blank."]
[null,"Preschool-age children (PreSAC) - aged 1-4 years",null,null,0.1]
[null,"School-age children (SAC) - aged 5-14 years",null,null,0.09]
[null,"Adults - aged 15 years and older",null,null,0.61]

{"sheet":"COUNTRY_INFO","index":1,"n_rows":32,"n_cols":23,"rows_kept":32,"cut":false,"hidden":false,"merged":[[3,16,3,18],[5,16,5,18],[3,0,3,2],[3,7,3,9],[3,13,3,15],[5,0,5,2],[7,0,7,15],[5,3,5,6],[5,7,5,9],[5,10,5,12],[5,13,5,15]]}
["COUNTRY INFORMATION"]
["Administrative structure, population by age group, status of endemicity and planned interventions"]
[]
["TOTAL",null,null,{"$f":"SUM(D$9:D$1000)","v":2160882},{"$f":"SUM(E$9:E$1000)","v":216089},{"$f":"SUM(F$9:F$1000)","v":194482},{"$f":"SUM(G$9:G$1000)","v":1318140},null,null,null,{"$f":"SUM(K$9:K$1000)","v":0},{"$f":"SUM(L$9:L$1000)","v":116050},{"$f":"SUM(M$9:M$1000)","v":0}]
[]
["Country administrative structure",null,null,"Population",null,null,null,"Endemicity",null,null,"Population requiring PC",null,null,"Number of treatment\nrounds planned for the year",null,null,"Epidemiological surveys\nplanned for the year"]
["Country","Province/State","District","Total","PreSAC","SAC","Adults","LF","STH","SCH","LF","STH","SCH","LF","STH","SCH","LF","STH","SCH","UI_ID","UI_Name"]
[]
[{"$f":"IF(INTRO!$E$33<>0,INTRO!$E$33, \" \")","v":"Botswana"},null,"BOBIRWA",71936,{"$f":"IF(INTRO!$E$48=\"\",\"\",ROUND($D9*INTRO!$E$48,0))","v":7194},{"$f":"IF(INTRO!$E$49=\"\",\"\",ROUND($D9*INTRO!$E$49,0))","v":6474},{"$f":"IF(INTRO!$E$50=\"\",\"\",ROUND($D9*INTRO!$E$50,0))","v":43881},null,0,null,{"$f":"IF(INTRO!$E$37=\"Endemic\",IF($H9>0,IF($H9=4,\"Unknown\",IF($H9=99,\"Stopped\",$D9)),0),\"Not required\")","v":"Not required"},{"$f":"IF(INTRO!$E$41=\"Endemic\", IF(AND($I9>1, $I9<5), IF($I9=4, \"Unknown\", E9+F9), 0),\"Not required\")","v":0},{"$f":"IF(INTRO!$E$43=\"Endemic\", IF(AND($J9>0,$J9<5), IF($J9=4,\"Unknown\", IF($J9=1, $F9*0.33, IF($J9=2, $F9*0.5+$G9*0.2, SUM(F9:G9)))), 0),\"Not required\")","v":"Not required"},null,0,null,null,null,null,4290,"Bobirwa",null,{"$f":"U9=C9","v":true}]
[{"$f":"IF(INTRO!$E$33<>0,INTRO!$E$33, \" \")","v":"Botswana"},null,"BOTETI",72139,{"$f":"IF(INTRO!$E$48=\"\",\"\",ROUND($D10*INTRO!$E$48,0))","v":7214},{"$f":"IF(INTRO!$E$49=\"\",\"\",ROUND($D10*INTRO!$E$49,0))","v":6493},{"$f":"IF(INTRO!$E$50=\"\",\"\",ROUND($D10*INTRO!$E$50,0))","v":44005},null,1,null,{"$f":"IF(INTRO!$E$37=\"Endemic\",IF($H10>0,IF($H10=4,\"Unknown\",IF($H10=99,\"Stopped\",$D10)),0),\"Not required\")","v":"Not required"},{"$f":"IF(INTRO!$E$41=\"Endemic\", IF(AND($I10>1, $I10<5), IF($I10=4, \"Unknown\", E10+F10), 0),\"Not required\")","v":0},{"$f":"IF(INTRO!$E$43=\"Endemic\", IF(AND($J10>0,$J10<5), IF($J10=4,\"Unknown\", IF($J10=1, $F10*0.33, IF($J10=2, $F10*0.5+$G10*0.2, SUM(F10:G10)))), 0),\"Not required\")","v":"Not required"},null,0,null,null,null,null,4291,"Boteti",null,{"$f":"U10=C10","v":true}]
[{"$f":"IF(INTRO!$E$33<>0,INTRO!$E$33, \" \")","v":"Botswana"},null,"CHOBE",25173,{"$f":"IF(INTRO!$E$48=\"\",\"\",ROUND($D11*INTRO!$E$48,0))","v":2517},{"$f":"IF(INTRO!$E$49=\"\",\"\",ROUND($D11*INTRO!$E$49,0))","v":2266},{"$f":"IF(INTRO!$E$50=\"\",\"\",ROUND($D11*INTRO!$E$50,0))","v":15356},null,3,null,{"$f":"IF(INTRO!$E$37=\"Endemic\",IF($H11>0,IF($H11=4,\"Unknown\",IF($H11=99,\"Stopped\",$D11)),0),\"Not required\")","v":"Not required"},{"$f":"IF(INTRO!$E$41=\"Endemic\", IF(AND($I11>1, $I11<5), IF($I11=4, \"Unknown\", E11+F11), 0),\"Not required\")","v":4783},{"$f":"IF(INTRO!$E$43=\"Endemic\", IF(AND($J11>0,$J11<5), IF($J11=4,\"Unknown\", IF($J11=1, $F11*0.33, IF($J11=2, $F11*0.5+$G11*0.2, SUM(F11:G11)))), 0),\"Not required\")","v":"Not required"},null,2,null,null,null,null,4304,"Chobe",null,true]
[{"$f":"IF(INTRO!$E$33<>0,INTRO!$E$33, \" \")","v":"Botswana"},null,"FRANCISTOWN",141917,{"$f":"IF(INTRO!$E$48=\"\",\"\",ROUND($D12*INTRO!$E$48,0))","v":14192},{"$f":"IF(INTRO!$E$49=\"\",\"\",ROUND($D12*INTRO!$E$49,0))","v":12773},{"$f":"IF(INTRO!$E$50=\"\",\"\",ROUND($D12*INTRO!$E$50,0))","v":86569},null,1,null,{"$f":"IF(INTRO!$E$37=\"Endemic\",IF($H12>0,IF($H12=4,\"Unknown\",IF($H12=99,\"Stopped\",$D12)),0),\"Not required\")","v":"Not required"},{"$f":"IF(INTRO!$E$41=\"Endemic\", IF(AND($I12>1, $I12<5), IF($I12=4, \"Unknown\", E12+F12), 0),\"Not required\")","v":0},{"$f":"IF(INTRO!$E$43=\"Endemic\", IF(AND($J12>0,$J12<5), IF($J12=4,\"Unknown\", IF($J12=1, $F12*0.33, IF($J12=2, $F12*0.5+$G12*0.2, SUM(F12:G12)))), 0),\"Not required\")","v":"Not required"},null,0,null,null,null,null,4302,"Francistown",null,true]
[{"$f":"IF(INTRO!$E$33<>0,INTRO!$E$33, \" \")","v":"Botswana"},null,"GABORONE",286024,{"$f":"IF(INTRO!$E$48=\"\",\"\",ROUND($D13*INTRO!$E$48,0))","v":28602},{"$f":"IF(INTRO!$E$49=\"\",\"\",ROUND($D13*INTRO!$E$49,0))","v":25742},{"$f":"IF(INTRO!$E$50=\"\",\"\",ROUND($D13*INTRO!$E$50,0))","v":174475},null,1,null,{"$f":"IF(INTRO!$E$37=\"Endemic\",IF($H13>0,IF($H13=4,\"Unknown\",IF($H13=99,\"Stopped\",$D13)),0),\"Not required\")","v":"Not required"},{"$f":"IF(INTRO!$E$41=\"Endemic\", IF(AND($I13>1, $I13<5), IF($I13=4, \"Unknown\", E13+F13), 0),\"Not required\")","v":0},{"$f":"IF(INTRO!$E$43=\"Endemic\", IF(AND($J13>0,$J13<5), IF($J13=4,\"Unknown\", IF($J13=1, $F13*0.33, IF($J13=2, $F13*0.5+$G13*0.2, SUM(F13:G13)))), 0),\"Not required\")","v":"Not required"},null,0,null,null,null,null,4307,"Gaborone",null,true]
[{"$f":"IF(INTRO!$E$33<>0,INTRO!$E$33, \" \")","v":"Botswana"},null,"GANTSI/CHARLESHILL",35581,{"$f":"IF(INTRO!$E$48=\"\",\"\",ROUND($D14*INTRO!$E$48,0))","v":3558},{"$f":"IF(INTRO!$E$49=\"\",\"\",ROUND($D14*INTRO!$E$49,0))","v":3202},{"$f":"IF(INTRO!$E$50=\"\",\"\",ROUND($D14*INTRO!$E$50,0))","v":21704},null,1,null,{"$f":"IF(INTRO!$E$37=\"Endemic\",IF($H14>0,IF($H14=4,\"Unknown\",IF($H14=99,\"Stopped\",$D14)),0),\"Not required\")","v":"Not required"},{"$f":"IF(INTRO!$E$41=\"Endemic\", IF(AND($I14>1, $I14<5), IF($I14=4, \"Unknown\", E14+F14), 0),\"Not required\")","v":0},{"$f":"IF(INTRO!$E$43=\"Endemic\", IF(AND($J14>0,$J14<5), IF($J14=4,\"Unknown\", IF($J14=1, $F14*0.33, IF($J14=2, $F14*0.5+$G14*0.2, SUM(F14:G14)))), 0),\"Not required\")","v":"Not required"},null,0,null,null,null,null,4296,"Gantsi Charleshill",null,false]
[{"$f":"IF(INTRO!$E$33<>0,INTRO!$E$33, \" \")","v":"Botswana"},null,"GOODHOPE",55565,{"$f":"IF(INTRO!$E$48=\"\",\"\",ROUND($D15*INTRO!$E$48,0))","v":5557},{"$f":"IF(INTRO!$E$49=\"\",\"\",ROUND($D15*INTRO!$E$49,0))","v":5001},{"$f":"IF(INTRO!$E$50=\"\",\"\",ROUND($D15*INTRO!$E$50,0))","v":33895},null,1,null,{"$f":"IF(INTRO!$E$37=\"Endemic\",IF($H15>0,IF($H15=4,\"Unknown\",IF($H15=99,\"Stopped\",$D15)),0),\"Not required\")","v":"Not required"},{"$f":"IF(INTRO!$E$41=\"Endemic\", IF(AND($I15>1, $I15<5), IF($I15=4, \"Unknown\", E15+F15), 0),\"Not required\")","v":0},{"$f":"IF(INTRO!$E$43=\"Endemic\", IF(AND($J15>0,$J15<5), IF($J15=4,\"Unknown\", IF($J15=1, $F15*0.33, IF($J15=2, $F15*0.5+$G15*0.2, SUM(F15:G15)))), 0),\"Not required\")","v":"Not required"},null,0,null,null,null,null,4310,"Good Hope",null,false]
[{"$f":"IF(INTRO!$E$33<>0,INTRO!$E$33, \" \")","v":"Botswana"},null,"JWANENG",27534,{"$f":"IF(INTRO!$E$48=\"\",\"\",ROUND($D16*INTRO!$E$48,0))","v":2753},{"$f":"IF(INTRO!$E$49=\"\",\"\",ROUND($D16*INTRO!$E$49,0))","v":2478},{"$f":"IF(INTRO!$E$50=\"\",\"\",ROUND($D16*INTRO!$E$50,0))","v":16796},null,2,null,{"$f":"IF(INTRO!$E$37=\"Endemic\",IF($H16>0,IF($H16=4,\"Unknown\",IF($H16=99,\"Stopped\",$D16)),0),\"Not required\")","v":"Not required"},{"$f":"IF(INTRO!$E$41=\"Endemic\", IF(AND($I16>1, $I16<5), IF($I16=4, \"Unknown\", E16+F16), 0),\"Not required\")","v":5231},{"$f":"IF(INTRO!$E$43=\"Endemic\", IF(AND($J16>0,$J16<5), IF($J16=4,\"Unknown\", IF($J16=1, $F16*0.33, IF($J16=2, $F16*0.5+$G16*0.2, SUM(F16:G16)))), 0),\"Not required\")","v":"Not required"},null,1,null,null,null,null,4311,"Jwaneng",null,true]
[{"$f":"IF(INTRO!$E$33<>0,INTRO!$E$33, \" \")","v":"Botswana"},null,"KANYE/MOSHOPA",139353,{"$f":"IF(INTRO!$E$48=\"\",\"\",ROUND($D17*INTRO!$E$48,0))","v":13935},{"$f":"IF(INTRO!$E$49=\"\",\"\",ROUND($D17*INTRO!$E$49,0))","v":12542},{"$f":"IF(INTRO!$E$50=\"\",\"\",ROUND($D17*INTRO!$E$50,0))","v":85005},null,1,null,{"$f":"IF(INTRO!$E$37=\"Endemic\",IF($H17>0,IF($H17=4,\"Unknown\",IF($H17=99,\"Stopped\",$D17)),0),\"Not required\")","v":"Not required"},{"$f":"IF(INTRO!$E$41=\"Endemic\", IF(AND($I17>1, $I17<5), IF($I17=4, \"Unknown\", E17+F17), 0),\"Not required\")","v":0},{"$f":"IF(INTRO!$E$43=\"Endemic\", IF(AND($J17>0,$J17<5), IF($J17=4,\"Unknown\", IF($J17=1, $F17*0.33, IF($J17=2, $F17*0.5+$G17*0.2, SUM(F17:G17)))), 0),\"Not required\")","v":"Not required"},null,0,null,null,null,null,4312,"Kanye Moshupa",null,false]
[{"$f":"IF(INTRO!$E$33<>0,INTRO!$E$33, \" \")","v":"Botswana"},null,"KGALAGADI NORTH",22077,{"$f":"IF(INTRO!$E$48=\"\",\"\",ROUND($D18*INTRO!$E$48,0))","v":2208},{"$f":"IF(INTRO!$E$49=\"\",\"\",ROUND($D18*INTRO!$E$49,0))","v":1987},{"$f":"IF(INTRO!$E$50=\"\",\"\",ROUND($D18*INTRO!$E$50,0))","v":13467},null,1,null,{"$f":"IF(INTRO!$E$37=\"Endemic\",IF($H18>0,IF($H18=4,\"Unknown\",IF($H18=99,\"Stopped\",$D18)),0),\"Not required\")","v":"Not required"},{"$f":"IF(INTRO!$E$41=\"Endemic\", IF(AND($I18>1, $I18<5), IF($I18=4, \"Unknown\", E18+F18), 0),\"Not required\")","v":0},{"$f":"IF(INTRO!$E$43=\"Endemic\", IF(AND($J18>0,$J18<5), IF($J18=4,\"Unknown\", IF($J18=1, $F18*0.33, IF($J18=2, $F18*0.5+$G18*0.2, SUM(F18:G18)))), 0),\"Not required\")","v":"Not required"},null,0,null,null,null,null,4297,"Kgalagadi North",null,true]
[{"$f":"IF(INTRO!$E$33<>0,INTRO!$E$33, \" \")","v":"Botswana"},null,"KGALAGADI SOUTH",32363,{"$f":"IF(INTRO!$E$48=\"\",\"\",ROUND($D19*INTRO!$E$48,0))","v":3236},{"$f":"IF(INTRO!$E$49=\"\",\"\",ROUND($D19*INTRO!$E$49,0))","v":2913},{"$f":"IF(INTRO!$E$50=\"\",\"\",ROUND($D19*INTRO!$E$50,0))","v":19741},null,2,null,{"$f":"IF(INTRO!$E$37=\"Endemic\",IF($H19>0,IF($H19=4,\"Unknown\",IF($H19=99,\"Stopped\",$D19)),0),\"Not required\")","v":"Not required"},{"$f":"IF(INTRO!$E$41=\"Endemic\", IF(AND($I19>1, $I19<5), IF($I19=4, \"Unknown\", E19+F19), 0),\"Not required\")","v":6149},{"$f":"IF(INTRO!$E$43=\"Endemic\", IF(AND($J19>0,$J19<5), IF($J19=4,\"Unknown\", IF($J19=1, $F19*0.33, IF($J19=2, $F19*0.5+$G19*0.2, SUM(F19:G19)))), 0),\"Not required\")","v":"Not required"},null,1,null,null,null,null,4298,"Kgalagadi South",null,true]
[{"$f":"IF(INTRO!$E$33<>0,INTRO!$E$33, \" \")","v":"Botswana"},null,"KGATLENG",98827,{"$f":"IF(INTRO!$E$48=\"\",\"\",ROUND($D20*INTRO!$E$48,0))","v":9883},{"$f":"IF(INTRO!$E$49=\"\",\"\",ROUND($D20*INTRO!$E$49,0))","v":8894},{"$f":"IF(INTRO!$E$50=\"\",\"\",ROUND($D20*INTRO!$E$50,0))","v":60284},null,1,null,{"$f":"IF(INTRO!$E$37=\"Endemic\",IF($H20>0,IF($H20=4,\"Unknown\",IF($H20=99,\"Stopped\",$D20)),0),\"Not required\")","v":"Not required"},{"$f":"IF(INTRO!$E$41=\"Endemic\", IF(AND($I20>1, $I20<5), IF($I20=4, \"Unknown\", E20+F20), 0),\"Not required\")","v":0},{"$f":"IF(INTRO!$E$43=\"Endemic\", IF(AND($J20>0,$J20<5), IF($J20=4,\"Unknown\", IF($J20=1, $F20*0.33, IF($J20=2, $F20*0.5+$G20*0.2, SUM(F20:G20)))), 0),\"Not required\")","v":"Not required"},null,0,null,null,null,null,4299,"Kgatleng",null,true]
[{"$f":"IF(INTRO!$E$33<>0,INTRO!$E$33, \" \")","v":"Botswana"},null,"KWENENG EAST",276828,{"$f":"IF(INTRO!$E$48=\"\",\"\",ROUND($D21*INTRO!$E$48,0))","v":27683},{"$f":"IF(INTRO!$E$49=\"\",\"\",ROUND($D21*INTRO!$E$49,0))","v":24915},{"$f":"IF(INTRO!$E$50=\"\",\"\",ROUND($D21*INTRO!$E$50,0))","v":168865},null,1,null,{"$f":"IF(INTRO!$E$37=\"Endemic\",IF($H21>0,IF($H21=4,\"Unknown\",IF($H21=99,\"Stopped\",$D21)),0),\"Not required\")","v":"Not required"},{"$f":"IF(INTRO!$E$41=\"Endemic\", IF(AND($I21>1, $I21<5), IF($I21=4, \"Unknown\", E21+F21), 0),\"Not required\")","v":0},{"$f":"IF(INTRO!$E$43=\"Endemic\", IF(AND($J21>0,$J21<5), IF($J21=4,\"Unknown\", IF($J21=1, $F21*0.33, IF($J21=2, $F21*0.5+$G21*0.2, SUM(F21:G21)))), 0),\"Not required\")","v":"Not required"},null,0,null,null,null,null,4300,"Kweneng East",null,true]
[{"$f":"IF(INTRO!$E$33<>0,INTRO!$E$33, \" \")","v":"Botswana"},null,"KWENENG WEST",51534,{"$f":"IF(INTRO!$E$48=\"\",\"\",ROUND($D22*INTRO!$E$48,0))","v":5153},{"$f":"IF(INTRO!$E$49=\"\",\"\",ROUND($D22*INTRO!$E$49,0))","v":4638},{"$f":"IF(INTRO!$E$50=\"\",\"\",ROUND($D22*INTRO!$E$50,0))","v":31436},null,1,null,{"$f":"IF(INTRO!$E$37=\"Endemic\",IF($H22>0,IF($H22=4,\"Unknown\",IF($H22=99,\"Stopped\",$D22)),0),\"Not required\")","v":"Not required"},{"$f":"IF(INTRO!$E$41=\"Endemic\", IF(AND($I22>1, $I22<5), IF($I22=4, \"Unknown\", E22+F22), 0),\"Not required\")","v":0},{"$f":"IF(INTRO!$E$43=\"Endemic\", IF(AND($J22>0,$J22<5), IF($J22=4,\"Unknown\", IF($J22=1, $F22*0.33, IF($J22=2, $F22*0.5+$G22*0.2, SUM(F22:G22)))), 0),\"Not required\")","v":"Not required"},null,0,null,null,null,null,4301,"Kweneng West",null,true]
[{"$f":"IF(INTRO!$E$33<>0,INTRO!$E$33, \" \")","v":"Botswana"},null,"LOBATSE",34829,{"$f":"IF(INTRO!$E$48=\"\",\"\",ROUND($D23*INTRO!$E$48,0))","v":3483},{"$f":"IF(INTRO!$E$49=\"\",\"\",ROUND($D23*INTRO!$E$49,0))","v":3135},{"$f":"IF(INTRO!$E$50=\"\",\"\",ROUND($D23*INTRO!$E$50,0))","v":21246},null,2,null,{"$f":"IF(INTRO!$E$37=\"Endemic\",IF($H23>0,IF($H23=4,\"Unknown\",IF($H23=99,\"Stopped\",$D23)),0),\"Not required\")","v":"Not required"},{"$f":"IF(INTRO!$E$41=\"Endemic\", IF(AND($I23>1, $I23<5), IF($I23=4, \"Unknown\", E23+F23), 0),\"Not required\")","v":6618},{"$f":"IF(INTRO!$E$43=\"Endemic\", IF(AND($J23>0,$J23<5), IF($J23=4,\"Unknown\", IF($J23=1, $F23*0.33, IF($J23=2, $F23*0.5+$G23*0.2, SUM(F23:G23)))), 0),\"Not required\")","v":"Not required"},null,1,null,null,null,null,4308,"Lobatse",null,true]
[{"$f":"IF(INTRO!$E$33<>0,INTRO!$E$33, \" \")","v":"Botswana"},null,"MABUTSANE",6642,{"$f":"IF(INTRO!$E$48=\"\",\"\",ROUND($D24*INTRO!$E$48,0))","v":664},{"$f":"IF(INTRO!$E$49=\"\",\"\",ROUND($D24*INTRO!$E$49,0))","v":598},{"$f":"IF(INTRO!$E$50=\"\",\"\",ROUND($D24*INTRO!$E$50,0))","v":4052},null,2,null,{"$f":"IF(INTRO!$E$37=\"Endemic\",IF($H24>0,IF($H24=4,\"Unknown\",IF($H24=99,\"Stopped\",$D24)),0),\"Not required\")","v":"Not required"},{"$f":"IF(INTRO!$E$41=\"Endemic\", IF(AND($I24>1, $I24<5), IF($I24=4, \"Unknown\", E24+F24), 0),\"Not required\")","v":1262},{"$f":"IF(INTRO!$E$43=\"Endemic\", IF(AND($J24>0,$J24<5), IF($J24=4,\"Unknown\", IF($J24=1, $F24*0.33, IF($J24=2, $F24*0.5+$G24*0.2, SUM(F24:G24)))), 0),\"Not required\")","v":"Not required"},null,1,null,null,null,null,4292,"Mabutsane",null,true]
[{"$f":"IF(INTRO!$E$33<>0,INTRO!$E$33, \" \")","v":"Botswana"},null,"MAHALAPYE",128170,{"$f":"IF(INTRO!$E$48=\"\",\"\",ROUND($D25*INTRO!$E$48,0))","v":12817},{"$f":"IF(INTRO!$E$49=\"\",\"\",ROUND($D25*INTRO!$E$49,0))","v":11535},{"$f":"IF(INTRO!$E$50=\"\",\"\",ROUND($D25*INTRO!$E$50,0))","v":78184},null,2,null,{"$f":"IF(INTRO!$E$37=\"Endemic\",IF($H25>0,IF($H25=4,\"Unknown\",IF($H25=99,\"Stopped\",$D25)),0),\"Not required\")","v":"Not required"},{"$f":"IF(INTRO!$E$41=\"Endemic\", IF(AND($I25>1, $I25<5), IF($I25=4, \"Unknown\", E25+F25), 0),\"Not required\")","v":24352},{"$f":"IF(INTRO!$E$43=\"Endemic\", IF(AND($J25>0,$J25<5), IF($J25=4,\"Unknown\", IF($J25=1, $F25*0.33, IF($J25=2, $F25*0.5+$G25*0.2, SUM(F25:G25)))), 0),\"Not required\")","v":"Not required"},null,1,null,null,null,null,4313,"Mahalapye",null,true]
[{"$f":"IF(INTRO!$E$33<>0,INTRO!$E$33, \" \")","v":"Botswana"},null,"NGAMILAND",97398,{"$f":"IF(INTRO!$E$48=\"\",\"\",ROUND($D26*INTRO!$E$48,0))","v":9740},{"$f":"IF(INTRO!$E$49=\"\",\"\",ROUND($D26*INTRO!$E$49,0))","v":8766},{"$f":"IF(INTRO!$E$50=\"\",\"\",ROUND($D26*INTRO!$E$50,0))","v":59413},null,2,null,{"$f":"IF(INTRO!$E$37=\"Endemic\",IF($H26>0,IF($H26=4,\"Unknown\",IF($H26=99,\"Stopped\",$D26)),0),\"Not required\")","v":"Not required"},{"$f":"IF(INTRO!$E$41=\"Endemic\", IF(AND($I26>1, $I26<5), IF($I26=4, \"Unknown\", E26+F26), 0),\"Not required\")","v":18506},{"$f":"IF(INTRO!$E$43=\"Endemic\", IF(AND($J26>0,$J26<5), IF($J26=4,\"Unknown\", IF($J26=1, $F26*0.33, IF($J26=2, $F26*0.5+$G26*0.2, SUM(F26:G26)))), 0),\"Not required\")","v":"Not required"},null,1,null,null,null,null,4305,"Ngamiland",null,true]
[{"$f":"IF(INTRO!$E$33<>0,INTRO!$E$33, \" \")","v":"Botswana"},null,"NORTH EAST",64976,{"$f":"IF(INTRO!$E$48=\"\",\"\",ROUND($D27*INTRO!$E$48,0))","v":6498},{"$f":"IF(INTRO!$E$49=\"\",\"\",ROUND($D27*INTRO!$E$49,0))","v":5848},{"$f":"IF(INTRO!$E$50=\"\",\"\",ROUND($D27*INTRO!$E$50,0))","v":39635},null,1,null,{"$f":"IF(INTRO!$E$37=\"Endemic\",IF($H27>0,IF($H27=4,\"Unknown\",IF($H27=99,\"Stopped\",$D27)),0),\"Not required\")","v":"Not required"},{"$f":"IF(INTRO!$E$41=\"Endemic\", IF(AND($I27>1, $I27<5), IF($I27=4, \"Unknown\", E27+F27), 0),\"Not required\")","v":0},{"$f":"IF(INTRO!$E$43=\"Endemic\", IF(AND($J27>0,$J27<5), IF($J27=4,\"Unknown\", IF($J27=1, $F27*0.33, IF($J27=2, $F27*0.5+$G27*0.2, SUM(F27:G27)))), 0),\"Not required\")","v":"Not required"},null,0,null,null,null,null,4303,"North East",null,true]
[{"$f":"IF(INTRO!$E$33<>0,INTRO!$E$33, \" \")","v":"Botswana"},null,"OKAVANGO",64067,{"$f":"IF(INTRO!$E$48=\"\",\"\",ROUND($D28*INTRO!$E$48,0))","v":6407},{"$f":"IF(INTRO!$E$49=\"\",\"\",ROUND($D28*INTRO!$E$49,0))","v":5766},{"$f":"IF(INTRO!$E$50=\"\",\"\",ROUND($D28*INTRO!$E$50,0))","v":39081},null,2,null,{"$f":"IF(INTRO!$E$37=\"Endemic\",IF($H28>0,IF($H28=4,\"Unknown\",IF($H28=99,\"Stopped\",$D28)),0),\"Not required\")","v":"Not required"},{"$f":"IF(INTRO!$E$41=\"Endemic\", IF(AND($I28>1, $I28<5), IF($I28=4, \"Unknown\", E28+F28), 0),\"Not required\")","v":12173},{"$f":"IF(INTRO!$E$43=\"Endemic\", IF(AND($J28>0,$J28<5), IF($J28=4,\"Unknown\", IF($J28=1, $F28*0.33, IF($J28=2, $F28*0.5+$G28*0.2, SUM(F28:G28)))), 0),\"Not required\")","v":"Not required"},null,1,null,null,null,null,4306,"Okavango",null,true]
[{"$f":"IF(INTRO!$E$33<>0,INTRO!$E$33, \" \")","v":"Botswana"},null,"SELIBE PHIKWE",194614,{"$f":"IF(INTRO!$E$48=\"\",\"\",ROUND($D29*INTRO!$E$48,0))","v":19461},{"$f":"IF(INTRO!$E$49=\"\",\"\",ROUND($D29*INTRO!$E$49,0))","v":17515},{"$f":"IF(INTRO!$E$50=\"\",\"\",ROUND($D29*INTRO!$E$50,0))","v":118715},null,2,null,{"$f":"IF(INTRO!$E$37=\"Endemic\",IF($H29>0,IF($H29=4,\"Unknown\",IF($H29=99,\"Stopped\",$D29)),0),\"Not required\")","v":"Not required"},{"$f":"IF(INTRO!$E$41=\"Endemic\", IF(AND($I29>1, $I29<5), IF($I29=4, \"Unknown\", E29+F29), 0),\"Not required\")","v":36976},{"$f":"IF(INTRO!$E$43=\"Endemic\", IF(AND($J29>0,$J29<5), IF($J29=4,\"Unknown\", IF($J29=1, $F29*0.33, IF($J29=2, $F29*0.5+$G29*0.2, SUM(F29:G29)))), 0),\"Not required\")","v":"Not required"},null,1,null,null,null,null,4293,"Selibe Phikwe",null,true]
[{"$f":"IF(INTRO!$E$33<>0,INTRO!$E$33, \" \")","v":"Botswana"},null,"SEROWE / PALAPYE",53275,{"$f":"IF(INTRO!$E$48=\"\",\"\",ROUND($D30*INTRO!$E$48,0))","v":5328},{"$f":"IF(INTRO!$E$49=\"\",\"\",ROUND($D30*INTRO!$E$49,0))","v":4795},{"$f":"IF(INTRO!$E$50=\"\",\"\",ROUND($D30*INTRO!$E$50,0))","v":32498},null,1,null,{"$f":"IF(INTRO!$E$37=\"Endemic\",IF($H30>0,IF($H30=4,\"Unknown\",IF($H30=99,\"Stopped\",$D30)),0),\"Not required\")","v":"Not required"},{"$f":"IF(INTRO!$E$41=\"Endemic\", IF(AND($I30>1, $I30<5), IF($I30=4, \"Unknown\", E30+F30), 0),\"Not required\")","v":0},{"$f":"IF(INTRO!$E$43=\"Endemic\", IF(AND($J30>0,$J30<5), IF($J30=4,\"Unknown\", IF($J30=1, $F30*0.33, IF($J30=2, $F30*0.5+$G30*0.2, SUM(F30:G30)))), 0),\"Not required\")","v":"Not required"},null,0,null,null,null,null,4294,"Serowe Palapye",null,false]
[{"$f":"IF(INTRO!$E$33<>0,INTRO!$E$33, \" \")","v":"Botswana"},null,"SOUTH EAST",52498,{"$f":"IF(INTRO!$E$48=\"\",\"\",ROUND($D31*INTRO!$E$48,0))","v":5250},{"$f":"IF(INTRO!$E$49=\"\",\"\",ROUND($D31*INTRO!$E$49,0))","v":4725},{"$f":"IF(INTRO!$E$50=\"\",\"\",ROUND($D31*INTRO!$E$50,0))","v":32024},null,1,null,{"$f":"IF(INTRO!$E$37=\"Endemic\",IF($H31>0,IF($H31=4,\"Unknown\",IF($H31=99,\"Stopped\",$D31)),0),\"Not required\")","v":"Not required"},{"$f":"IF(INTRO!$E$41=\"Endemic\", IF(AND($I31>1, $I31<5), IF($I31=4, \"Unknown\", E31+F31), 0),\"Not required\")","v":0},{"$f":"IF(INTRO!$E$43=\"Endemic\", IF(AND($J31>0,$J31<5), IF($J31=4,\"Unknown\", IF($J31=1, $F31*0.33, IF($J31=2, $F31*0.5+$G31*0.2, SUM(F31:G31)))), 0),\"Not required\")","v":"Not required"},null,0,null,null,null,null,4309,"South East",null,true]
[{"$f":"IF(INTRO!$E$33<>0,INTRO!$E$33, \" \")","v":"Botswana"},null,"TUTUME",127562,{"$f":"IF(INTRO!$E$48=\"\",\"\",ROUND($D32*INTRO!$E$48,0))","v":12756},{"$f":"IF(INTRO!$E$49=\"\",\"\",ROUND($D32*INTRO!$E$49,0))","v":11481},{"$f":"IF(INTRO!$E$50=\"\",\"\",ROUND($D32*INTRO!$E$50,0))","v":77813},null,1,null,{"$f":"IF(INTRO!$E$37=\"Endemic\",IF($H32>0,IF($H32=4,\"Unknown\",IF($H32=99,\"Stopped\",$D32)),0),\"Not required\")","v":"Not required"},{"$f":"IF(INTRO!$E$41=\"Endemic\", IF(AND($I32>1, $I32<5), IF($I32=4, \"Unknown\", E32+F32), 0),\"Not required\")","v":0},{"$f":"IF(INTRO!$E$43=\"Endemic\", IF(AND($J32>0,$J32<5), IF($J32=4,\"Unknown\", IF($J32=1, $F32*0.33, IF($J32=2, $F32*0.5+$G32*0.2, SUM(F32:G32)))), 0),\"Not required\")","v":"Not required"},null,0,null,null,null,null,4295,"Tutume",null,true]

{"sheet":"DEC","index":2,"n_rows":32,"n_cols":13,"rows_kept":32,"cut":false,"hidden":false,"merged":[[3,0,3,2],[5,0,5,2],[6,5,7,5],[6,2,7,2],[6,1,7,1],[6,10,7,10],[6,0,7,0],[6,11,7,11],[5,3,5,6],[5,9,5,12],[6,4,7,4],[6,3,7,3],[6,8,7,8],[6,12,7,12],[6,7,7,7],[6,6,7,6],[6,9,7,9]]}
["Diethylcarbamazine citrate (DEC)"]
["Administrative structure, eligible population by age group, treatment plan and information about tablets"]
[]
["TOTAL",null,null,{"$f":"SUM(D$9:D$1000)","v":0},{"$f":"SUM(E$9:E$1000)","v":0},{"$f":"SUM(F$9:F$1000)","v":0},{"$f":"SUM(G$9:G$1000)","v":0},null,{"$f":"SUM(I$9:I$1000)","v":0},{"$f":"SUM(J$9:J$1000)","v":0},{"$f":"SUM(K$9:K$1000)","v":0},{"$f":"SUM(L$9:L$1000)","v":0},{"$f":"SUM(M$9:M$1000)","v":0}]
[]
["Country administrative structure",null,null,"Population requiring treatment with DEC",null,null,null,"Treatment plan","Target population","Diethylcarbamazine citrate (DEC)"]
["Country","Province/State","District","PreSAC","SAC","Adults","Total","LF","LF","Total required","Remaining in stock","Tablets to be procured","Bottle (100 mg)\n1000 tablets"]
[]
[{"$f":"IF(INTRO!$E$37=\"Non-endemic\",\" \", IF(COUNTRY_INFO!A9=0,\" \",COUNTRY_INFO!A9))","v":" "},{"$f":"IF(INTRO!$E$37=\"Non-endemic\",\" \", IF(COUNTRY_INFO!B9=0,\" \",COUNTRY_INFO!B9))","v":" "},{"$f":"IF(INTRO!$E$37=\"Non-endemic\",\" \", IF(COUNTRY_INFO!C9=0,\" \",COUNTRY_INFO!C9))","v":" "},{"$f":"IF(INTRO!$E$37=\"Non-endemic\",0,IF(COUNTRY_INFO!$H9=1,COUNTRY_INFO!E9,0))","v":0},{"$f":"IF(INTRO!$E$37=\"Non-endemic\",0,IF(COUNTRY_INFO!$H9=1,COUNTRY_INFO!F9,0))","v":0},{"$f":"IF(INTRO!$E$37=\"Non-endemic\",0,IF(COUNTRY_INFO!$H9=1,COUNTRY_INFO!G9,0))","v":0},{"$f":"SUM(D9:F9)","v":0},{"$f":"IF(INTRO!$E$37=\"Non-endemic\",\"Not required\",COUNTRY_INFO!N9)","v":"Not required"},{"$f":"IF(H9=1,G9,0)","v":0},{"$f":"IF(I9>0,I9*2.5,0)","v":0},null,{"$f":"IF($J9>$K9,$J9-$K9,0)","v":0},{"$f":"ROUNDUP($J9/1000,0)","v":0}]
[{"$f":"IF(INTRO!$E$37=\"Non-endemic\",\" \", IF(COUNTRY_INFO!A10=0,\" \",COUNTRY_INFO!A10))","v":" "},{"$f":"IF(INTRO!$E$37=\"Non-endemic\",\" \", IF(COUNTRY_INFO!B10=0,\" \",COUNTRY_INFO!B10))","v":" "},{"$f":"IF(INTRO!$E$37=\"Non-endemic\",\" \", IF(COUNTRY_INFO!C10=0,\" \",COUNTRY_INFO!C10))","v":" "},{"$f":"IF(INTRO!$E$37=\"Non-endemic\",0,IF(COUNTRY_INFO!$H10=1,COUNTRY_INFO!E10,0))","v":0},{"$f":"IF(INTRO!$E$37=\"Non-endemic\",0,IF(COUNTRY_INFO!$H10=1,COUNTRY_INFO!F10,0))","v":0},{"$f":"IF(INTRO!$E$37=\"Non-endemic\",0,IF(COUNTRY_INFO!$H10=1,COUNTRY_INFO!G10,0))","v":0},0,{"$f":"IF(INTRO!$E$37=\"Non-endemic\",\"Not required\",COUNTRY_INFO!N10)","v":"Not required"},0,0,null,0,0]
[{"$f":"IF(INTRO!$E$37=\"Non-endemic\",\" \", IF(COUNTRY_INFO!A11=0,\" \",COUNTRY_INFO!A11))","v":" "},{"$f":"IF(INTRO!$E$37=\"Non-endemic\",\" \", IF(COUNTRY_INFO!B11=0,\" \",COUNTRY_INFO!B11))","v":" "},{"$f":"IF(INTRO!$E$37=\"Non-endemic\",\" \", IF(COUNTRY_INFO!C11=0,\" \",COUNTRY_INFO!C11))","v":" "},{"$f":"IF(INTRO!$E$37=\"Non-endemic\",0,IF(COUNTRY_INFO!$H11=1,COUNTRY_INFO!E11,0))","v":0},{"$f":"IF(INTRO!$E$37=\"Non-endemic\",0,IF(COUNTRY_INFO!$H11=1,COUNTRY_INFO!F11,0))","v":0},{"$f":"IF(INTRO!$E$37=\"Non-endemic\",0,IF(COUNTRY_INFO!$H11=1,COUNTRY_INFO!G11,0))","v":0},0,{"$f":"IF(INTRO!$E$37=\"Non-endemic\",\"Not required\",COUNTRY_INFO!N11)","v":"Not required"},0,0,null,0,0]
[{"$f":"IF(INTRO!$E$37=\"Non-endemic\",\" \", IF(COUNTRY_INFO!A12=0,\" \",COUNTRY_INFO!A12))","v":" "},{"$f":"IF(INTRO!$E$37=\"Non-endemic\",\" \", IF(COUNTRY_INFO!B12=0,\" \",COUNTRY_INFO!B12))","v":" "},{"$f":"IF(INTRO!$E$37=\"Non-endemic\",\" \", IF(COUNTRY_INFO!C12=0,\" \",COUNTRY_INFO!C12))","v":" "},{"$f":"IF(INTRO!$E$37=\"Non-endemic\",0,IF(COUNTRY_INFO!$H12=1,COUNTRY_INFO!E12,0))","v":0},{"$f":"IF(INTRO!$E$37=\"Non-endemic\",0,IF(COUNTRY_INFO!$H12=1,COUNTRY_INFO!F12,0))","v":0},{"$f":"IF(INTRO!$E$37=\"Non-endemic\",0,IF(COUNTRY_INFO!$H12=1,COUNTRY_INFO!G12,0))","v":0},0,{"$f":"IF(INTRO!$E$37=\"Non-endemic\",\"Not required\",COUNTRY_INFO!N12)","v":"Not required"},0,0,null,0,0]
[{"$f":"IF(INTRO!$E$37=\"Non-endemic\",\" \", IF(COUNTRY_INFO!A13=0,\" \",COUNTRY_INFO!A13))","v":" "},{"$f":"IF(INTRO!$E$37=\"Non-endemic\",\" \", IF(COUNTRY_INFO!B13=0,\" \",COUNTRY_INFO!B13))","v":" "},{"$f":"IF(INTRO!$E$37=\"Non-endemic\",\" \", IF(COUNTRY_INFO!C13=0,\" \",COUNTRY_INFO!C13))","v":" "},{"$f":"IF(INTRO!$E$37=\"Non-endemic\",0,IF(COUNTRY_INFO!$H13=1,COUNTRY_INFO!E13,0))","v":0},{"$f":"IF(INTRO!$E$37=\"Non-endemic\",0,IF(COUNTRY_INFO!$H13=1,COUNTRY_INFO!F13,0))","v":0},{"$f":"IF(INTRO!$E$37=\"Non-endemic\",0,IF(COUNTRY_INFO!$H13=1,COUNTRY_INFO!G13,0))","v":0},0,{"$f":"IF(INTRO!$E$37=\"Non-endemic\",\"Not required\",COUNTRY_INFO!N13)","v":"Not required"},0,0,null,0,0]
[{"$f":"IF(INTRO!$E$37=\"Non-endemic\",\" \", IF(COUNTRY_INFO!A14=0,\" \",COUNTRY_INFO!A14))","v":" "},{"$f":"IF(INTRO!$E$37=\"Non-endemic\",\" \", IF(COUNTRY_INFO!B14=0,\" \",COUNTRY_INFO!B14))","v":" "},{"$f":"IF(INTRO!$E$37=\"Non-endemic\",\" \", IF(COUNTRY_INFO!C14=0,\" \",COUNTRY_INFO!C14))","v":" "},{"$f":"IF(INTRO!$E$37=\"Non-endemic\",0,IF(COUNTRY_INFO!$H14=1,COUNTRY_INFO!E14,0))","v":0},{"$f":"IF(INTRO!$E$37=\"Non-endemic\",0,IF(COUNTRY_INFO!$H14=1,COUNTRY_INFO!F14,0))","v":0},{"$f":"IF(INTRO!$E$37=\"Non-endemic\",0,IF(COUNTRY_INFO!$H14=1,COUNTRY_INFO!G14,0))","v":0},0,{"$f":"IF(INTRO!$E$37=\"Non-endemic\",\"Not required\",COUNTRY_INFO!N14)","v":"Not required"},0,0,null,0,0]
[{"$f":"IF(INTRO!$E$37=\"Non-endemic\",\" \", IF(COUNTRY_INFO!A15=0,\" \",COUNTRY_INFO!A15))","v":" "},{"$f":"IF(INTRO!$E$37=\"Non-endemic\",\" \", IF(COUNTRY_INFO!B15=0,\" \",COUNTRY_INFO!B15))","v":" "},{"$f":"IF(INTRO!$E$37=\"Non-endemic\",\" \", IF(COUNTRY_INFO!C15=0,\" \",COUNTRY_INFO!C15))","v":" "},{"$f":"IF(INTRO!$E$37=\"Non-endemic\",0,IF(COUNTRY_INFO!$H15=1,COUNTRY_INFO!E15,0))","v":0},{"$f":"IF(INTRO!$E$37=\"Non-endemic\",0,IF(COUNTRY_INFO!$H15=1,COUNTRY_INFO!F15,0))","v":0},{"$f":"IF(INTRO!$E$37=\"Non-endemic\",0,IF(COUNTRY_INFO!$H15=1,COUNTRY_INFO!G15,0))","v":0},0,{"$f":"IF(INTRO!$E$37=\"Non-endemic\",\"Not required\",COUNTRY_INFO!N15)","v":"Not required"},0,0,null,0,0]
[{"$f":"IF(INTRO!$E$37=\"Non-endemic\",\" \", IF(COUNTRY_INFO!A16=0,\" \",COUNTRY_INFO!A16))","v":" "},{"$f":"IF(INTRO!$E$37=\"Non-endemic\",\" \", IF(COUNTRY_INFO!B16=0,\" \",COUNTRY_INFO!B16))","v":" "},{"$f":"IF(INTRO!$E$37=\"Non-endemic\",\" \", IF(COUNTRY_INFO!C16=0,\" \",COUNTRY_INFO!C16))","v":" "},{"$f":"IF(INTRO!$E$37=\"Non-endemic\",0,IF(COUNTRY_INFO!$H16=1,COUNTRY_INFO!E16,0))","v":0},{"$f":"IF(INTRO!$E$37=\"Non-endemic\",0,IF(COUNTRY_INFO!$H16=1,COUNTRY_INFO!F16,0))","v":0},{"$f":"IF(INTRO!$E$37=\"Non-endemic\",0,IF(COUNTRY_INFO!$H16=1,COUNTRY_INFO!G16,0))","v":0},0,{"$f":"IF(INTRO!$E$37=\"Non-endemic\",\"Not required\",COUNTRY_INFO!N16)","v":"Not required"},0,0,null,0,0]
[{"$f":"IF(INTRO!$E$37=\"Non-endemic\",\" \", IF(COUNTRY_INFO!A17=0,\" \",COUNTRY_INFO!A17))","v":" "},{"$f":"IF(INTRO!$E$37=\"Non-endemic\",\" \", IF(COUNTRY_INFO!B17=0,\" \",COUNTRY_INFO!B17))","v":" "},{"$f":"IF(INTRO!$E$37=\"Non-endemic\",\" \", IF(COUNTRY_INFO!C17=0,\" \",COUNTRY_INFO!C17))","v":" "},{"$f":"IF(INTRO!$E$37=\"Non-endemic\",0,IF(COUNTRY_INFO!$H17=1,COUNTRY_INFO!E17,0))","v":0},{"$f":"IF(INTRO!$E$37=\"Non-endemic\",0,IF(COUNTRY_INFO!$H17=1,COUNTRY_INFO!F17,0))","v":0},{"$f":"IF(INTRO!$E$37=\"Non-endemic\",0,IF(COUNTRY_INFO!$H17=1,COUNTRY_INFO!G17,0))","v":0},0,{"$f":"IF(INTRO!$E$37=\"Non-endemic\",\"Not required\",COUNTRY_INFO!N17)","v":"Not required"},0,0,null,0,0]
[{"$f":"IF(INTRO!$E$37=\"Non-endemic\",\" \", IF(COUNTRY_INFO!A18=0,\" \",COUNTRY_INFO!A18))","v":" "},{"$f":"IF(INTRO!$E$37=\"Non-endemic\",\" \", IF(COUNTRY_INFO!B18=0,\" \",COUNTRY_INFO!B18))","v":" "},{"$f":"IF(INTRO!$E$37=\"Non-endemic\",\" \", IF(COUNTRY_INFO!C18=0,\" \",COUNTRY_INFO!C18))","v":" "},{"$f":"IF(INTRO!$E$37=\"Non-endemic\",0,IF(COUNTRY_INFO!$H18=1,COUNTRY_INFO!E18,0))","v":0},{"$f":"IF(INTRO!$E$37=\"Non-endemic\",0,IF(COUNTRY_INFO!$H18=1,COUNTRY_INFO!F18,0))","v":0},{"$f":"IF(INTRO!$E$37=\"Non-endemic\",0,IF(COUNTRY_INFO!$H18=1,COUNTRY_INFO!G18,0))","v":0},0,{"$f":"IF(INTRO!$E$37=\"Non-endemic\",\"Not required\",COUNTRY_INFO!N18)","v":"Not required"},0,0,null,0,0]
[{"$f":"IF(INTRO!$E$37=\"Non-endemic\",\" \", IF(COUNTRY_INFO!A19=0,\" \",COUNTRY_INFO!A19))","v":" "},{"$f":"IF(INTRO!$E$37=\"Non-endemic\",\" \", IF(COUNTRY_INFO!B19=0,\" \",COUNTRY_INFO!B19))","v":" "},{"$f":"IF(INTRO!$E$37=\"Non-endemic\",\" \", IF(COUNTRY_INFO!C19=0,\" \",COUNTRY_INFO!C19))","v":" "},{"$f":"IF(INTRO!$E$37=\"Non-endemic\",0,IF(COUNTRY_INFO!$H19=1,COUNTRY_INFO!E19,0))","v":0},{"$f":"IF(INTRO!$E$37=\"Non-endemic\",0,IF(COUNTRY_INFO!$H19=1,COUNTRY_INFO!F19,0))","v":0},{"$f":"IF(INTRO!$E$37=\"Non-endemic\",0,IF(COUNTRY_INFO!$H19=1,COUNTRY_INFO!G19,0))","v":0},0,{"$f":"IF(INTRO!$E$37=\"Non-endemic\",\"Not required\",COUNTRY_INFO!N19)","v":"Not required"},0,0,null,0,0]
[{"$f":"IF(INTRO!$E$37=\"Non-endemic\",\" \", IF(COUNTRY_INFO!A20=0,\" \",COUNTRY_INFO!A20))","v":" "},{"$f":"IF(INTRO!$E$37=\"Non-endemic\",\" \", IF(COUNTRY_INFO!B20=0,\" \",COUNTRY_INFO!B20))","v":" "},{"$f":"IF(INTRO!$E$37=\"Non-endemic\",\" \", IF(COUNTRY_INFO!C20=0,\" \",COUNTRY_INFO!C20))","v":" "},{"$f":"IF(INTRO!$E$37=\"Non-endemic\",0,IF(COUNTRY_INFO!$H20=1,COUNTRY_INFO!E20,0))","v":0},{"$f":"IF(INTRO!$E$37=\"Non-endemic\",0,IF(COUNTRY_INFO!$H20=1,COUNTRY_INFO!F20,0))","v":0},{"$f":"IF(INTRO!$E$37=\"Non-endemic\",0,IF(COUNTRY_INFO!$H20=1,COUNTRY_INFO!G20,0))","v":0},0,{"$f":"IF(INTRO!$E$37=\"Non-endemic\",\"Not required\",COUNTRY_INFO!N20)","v":"Not required"},0,0,null,0,0]
[{"$f":"IF(INTRO!$E$37=\"Non-endemic\",\" \", IF(COUNTRY_INFO!A21=0,\" \",COUNTRY_INFO!A21))","v":" "},{"$f":"IF(INTRO!$E$37=\"Non-endemic\",\" \", IF(COUNTRY_INFO!B21=0,\" \",COUNTRY_INFO!B21))","v":" "},{"$f":"IF(INTRO!$E$37=\"Non-endemic\",\" \", IF(COUNTRY_INFO!C21=0,\" \",COUNTRY_INFO!C21))","v":" "},{"$f":"IF(INTRO!$E$37=\"Non-endemic\",0,IF(COUNTRY_INFO!$H21=1,COUNTRY_INFO!E21,0))","v":0},{"$f":"IF(INTRO!$E$37=\"Non-endemic\",0,IF(COUNTRY_INFO!$H21=1,COUNTRY_INFO!F21,0))","v":0},{"$f":"IF(INTRO!$E$37=\"Non-endemic\",0,IF(COUNTRY_INFO!$H21=1,COUNTRY_INFO!G21,0))","v":0},0,{"$f":"IF(INTRO!$E$37=\"Non-endemic\",\"Not required\",COUNTRY_INFO!N21)","v":"Not required"},0,0,null,0,0]
[{"$f":"IF(INTRO!$E$37=\"Non-endemic\",\" \", IF(COUNTRY_INFO!A22=0,\" \",COUNTRY_INFO!A22))","v":" "},{"$f":"IF(INTRO!$E$37=\"Non-endemic\",\" \", IF(COUNTRY_INFO!B22=0,\" \",COUNTRY_INFO!B22))","v":" "},{"$f":"IF(INTRO!$E$37=\"Non-endemic\",\" \", IF(COUNTRY_INFO!C22=0,\" \",COUNTRY_INFO!C22))","v":" "},{"$f":"IF(INTRO!$E$37=\"Non-endemic\",0,IF(COUNTRY_INFO!$H22=1,COUNTRY_INFO!E22,0))","v":0},{"$f":"IF(INTRO!$E$37=\"Non-endemic\",0,IF(COUNTRY_INFO!$H22=1,COUNTRY_INFO!F22,0))","v":0},{"$f":"IF(INTRO!$E$37=\"Non-endemic\",0,IF(COUNTRY_INFO!$H22=1,COUNTRY_INFO!G22,0))","v":0},0,{"$f":"IF(INTRO!$E$37=\"Non-endemic\",\"Not required\",COUNTRY_INFO!N22)","v":"Not required"},0,0,null,0,0]
[{"$f":"IF(INTRO!$E$37=\"Non-endemic\",\" \", IF(COUNTRY_INFO!A23=0,\" \",COUNTRY_INFO!A23))","v":" "},{"$f":"IF(INTRO!$E$37=\"Non-endemic\",\" \", IF(COUNTRY_INFO!B23=0,\" \",COUNTRY_INFO!B23))","v":" "},{"$f":"IF(INTRO!$E$37=\"Non-endemic\",\" \", IF(COUNTRY_INFO!C23=0,\" \",COUNTRY_INFO!C23))","v":" "},{"$f":"IF(INTRO!$E$37=\"Non-endemic\",0,IF(COUNTRY_INFO!$H23=1,COUNTRY_INFO!E23,0))","v":0},{"$f":"IF(INTRO!$E$37=\"Non-endemic\",0,IF(COUNTRY_INFO!$H23=1,COUNTRY_INFO!F23,0))","v":0},{"$f":"IF(INTRO!$E$37=\"Non-endemic\",0,IF(COUNTRY_INFO!$H23=1,COUNTRY_INFO!G23,0))","v":0},0,{"$f":"IF(INTRO!$E$37=\"Non-endemic\",\"Not required\",COUNTRY_INFO!N23)","v":"Not required"},0,0,null,0,0]
[{"$f":"IF(INTRO!$E$37=\"Non-endemic\",\" \", IF(COUNTRY_INFO!A24=0,\" \",COUNTRY_INFO!A24))","v":" "},{"$f":"IF(INTRO!$E$37=\"Non-endemic\",\" \", IF(COUNTRY_INFO!B24=0,\" \",COUNTRY_INFO!B24))","v":" "},{"$f":"IF(INTRO!$E$37=\"Non-endemic\",\" \", IF(COUNTRY_INFO!C24=0,\" \",COUNTRY_INFO!C24))","v":" "},{"$f":"IF(INTRO!$E$37=\"Non-endemic\",0,IF(COUNTRY_INFO!$H24=1,COUNTRY_INFO!E24,0))","v":0},{"$f":"IF(INTRO!$E$37=\"Non-endemic\",0,IF(COUNTRY_INFO!$H24=1,COUNTRY_INFO!F24,0))","v":0},{"$f":"IF(INTRO!$E$37=\"Non-endemic\",0,IF(COUNTRY_INFO!$H24=1,COUNTRY_INFO!G24,0))","v":0},0,{"$f":"IF(INTRO!$E$37=\"Non-endemic\",\"Not required\",COUNTRY_INFO!N24)","v":"Not required"},0,0,null,0,0]
[{"$f":"IF(INTRO!$E$37=\"Non-endemic\",\" \", IF(COUNTRY_INFO!A25=0,\" \",COUNTRY_INFO!A25))","v":" "},{"$f":"IF(INTRO!$E$37=\"Non-endemic\",\" \", IF(COUNTRY_INFO!B25=0,\" \",COUNTRY_INFO!B25))","v":" "},{"$f":"IF(INTRO!$E$37=\"Non-endemic\",\" \", IF(COUNTRY_INFO!C25=0,\" \",COUNTRY_INFO!C25))","v":" "},{"$f":"IF(INTRO!$E$37=\"Non-endemic\",0,IF(COUNTRY_INFO!$H25=1,COUNTRY_INFO!E25,0))","v":0},{"$f":"IF(INTRO!$E$37=\"Non-endemic\",0,IF(COUNTRY_INFO!$H25=1,COUNTRY_INFO!F25,0))","v":0},{"$f":"IF(INTRO!$E$37=\"Non-endemic\",0,IF(COUNTRY_INFO!$H25=1,COUNTRY_INFO!G25,0))","v":0},0,{"$f":"IF(INTRO!$E$37=\"Non-endemic\",\"Not required\",COUNTRY_INFO!N25)","v":"Not required"},0,0,null,0,0]
[{"$f":"IF(INTRO!$E$37=\"Non-endemic\",\" \", IF(COUNTRY_INFO!A26=0,\" \",COUNTRY_INFO!A26))","v":" "},{"$f":"IF(INTRO!$E$37=\"Non-endemic\",\" \", IF(COUNTRY_INFO!B26=0,\" \",COUNTRY_INFO!B26))","v":" "},{"$f":"IF(INTRO!$E$37=\"Non-endemic\",\" \", IF(COUNTRY_INFO!C26=0,\" \",COUNTRY_INFO!C26))","v":" "},{"$f":"IF(INTRO!$E$37=\"Non-endemic\",0,IF(COUNTRY_INFO!$H26=1,COUNTRY_INFO!E26,0))","v":0},{"$f":"IF(INTRO!$E$37=\"Non-endemic\",0,IF(COUNTRY_INFO!$H26=1,COUNTRY_INFO!F26,0))","v":0},{"$f":"IF(INTRO!$E$37=\"Non-endemic\",0,IF(COUNTRY_INFO!$H26=1,COUNTRY_INFO!G26,0))","v":0},0,{"$f":"IF(INTRO!$E$37=\"Non-endemic\",\"Not required\",COUNTRY_INFO!N26)","v":"Not required"},0,0,null,0,0]
[{"$f":"IF(INTRO!$E$37=\"Non-endemic\",\" \", IF(COUNTRY_INFO!A27=0,\" \",COUNTRY_INFO!A27))","v":" "},{"$f":"IF(INTRO!$E$37=\"Non-endemic\",\" \", IF(COUNTRY_INFO!B27=0,\" \",COUNTRY_INFO!B27))","v":" "},{"$f":"IF(INTRO!$E$37=\"Non-endemic\",\" \", IF(COUNTRY_INFO!C27=0,\" \",COUNTRY_INFO!C27))","v":" "},{"$f":"IF(INTRO!$E$37=\"Non-endemic\",0,IF(COUNTRY_INFO!$H27=1,COUNTRY_INFO!E27,0))","v":0},{"$f":"IF(INTRO!$E$37=\"Non-endemic\",0,IF(COUNTRY_INFO!$H27=1,COUNTRY_INFO!F27,0))","v":0},{"$f":"IF(INTRO!$E$37=\"Non-endemic\",0,IF(COUNTRY_INFO!$H27=1,COUNTRY_INFO!G27,0))","v":0},0,{"$f":"IF(INTRO!$E$37=\"Non-endemic\",\"Not required\",COUNTRY_INFO!N27)","v":"Not required"},0,0,null,0,0]
[{"$f":"IF(INTRO!$E$37=\"Non-endemic\",\" \", IF(COUNTRY_INFO!A28=0,\" \",COUNTRY_INFO!A28))","v":" "},{"$f":"IF(INTRO!$E$37=\"Non-endemic\",\" \", IF(COUNTRY_INFO!B28=0,\" \",COUNTRY_INFO!B28))","v":" "},{"$f":"IF(INTRO!$E$37=\"Non-endemic\",\" \", IF(COUNTRY_INFO!C28=0,\" \",COUNTRY_INFO!C28))","v":" "},{"$f":"IF(INTRO!$E$37=\"Non-endemic\",0,IF(COUNTRY_INFO!$H28=1,COUNTRY_INFO!E28,0))","v":0},{"$f":"IF(INTRO!$E$37=\"Non-endemic\",0,IF(COUNTRY_INFO!$H28=1,COUNTRY_INFO!F28,0))","v":0},{"$f":"IF(INTRO!$E$37=\"Non-endemic\",0,IF(COUNTRY_INFO!$H28=1,COUNTRY_INFO!G28,0))","v":0},0,{"$f":"IF(INTRO!$E$37=\"Non-endemic\",\"Not required\",COUNTRY_INFO!N28)","v":"Not required"},0,0,null,0,0]
[{"$f":"IF(INTRO!$E$37=\"Non-endemic\",\" \", IF(COUNTRY_INFO!A29=0,\" \",COUNTRY_INFO!A29))","v":" "},{"$f":"IF(INTRO!$E$37=\"Non-endemic\",\" \", IF(COUNTRY_INFO!B29=0,\" \",COUNTRY_INFO!B29))","v":" "},{"$f":"IF(INTRO!$E$37=\"Non-endemic\",\" \", IF(COUNTRY_INFO!C29=0,\" \",COUNTRY_INFO!C29))","v":" "},{"$f":"IF(INTRO!$E$37=\"Non-endemic\",0,IF(COUNTRY_INFO!$H29=1,COUNTRY_INFO!E29,0))","v":0},{"$f":"IF(INTRO!$E$37=\"Non-endemic\",0,IF(COUNTRY_INFO!$H29=1,COUNTRY_INFO!F29,0))","v":0},{"$f":"IF(INTRO!$E$37=\"Non-endemic\",0,IF(COUNTRY_INFO!$H29=1,COUNTRY_INFO!G29,0))","v":0},0,{"$f":"IF(INTRO!$E$37=\"Non-endemic\",\"Not required\",COUNTRY_INFO!N29)","v":"Not required"},0,0,null,0,0]
[{"$f":"IF(INTRO!$E$37=\"Non-endemic\",\" \", IF(COUNTRY_INFO!A30=0,\" \",COUNTRY_INFO!A30))","v":" "},{"$f":"IF(INTRO!$E$37=\"Non-endemic\",\" \", IF(COUNTRY_INFO!B30=0,\" \",COUNTRY_INFO!B30))","v":" "},{"$f":"IF(INTRO!$E$37=\"Non-endemic\",\" \", IF(COUNTRY_INFO!C30=0,\" \",COUNTRY_INFO!C30))","v":" "},{"$f":"IF(INTRO!$E$37=\"Non-endemic\",0,IF(COUNTRY_INFO!$H30=1,COUNTRY_INFO!E30,0))","v":0},{"$f":"IF(INTRO!$E$37=\"Non-endemic\",0,IF(COUNTRY_INFO!$H30=1,COUNTRY_INFO!F30,0))","v":0},{"$f":"IF(INTRO!$E$37=\"Non-endemic\",0,IF(COUNTRY_INFO!$H30=1,COUNTRY_INFO!G30,0))","v":0},0,{"$f":"IF(INTRO!$E$37=\"Non-endemic\",\"Not required\",COUNTRY_INFO!N30)","v":"Not required"},0,0,null,0,0]
[{"$f":"IF(INTRO!$E$37=\"Non-endemic\",\" \", IF(COUNTRY_INFO!A31=0,\" \",COUNTRY_INFO!A31))","v":" "},{"$f":"IF(INTRO!$E$37=\"Non-endemic\",\" \", IF(COUNTRY_INFO!B31=0,\" \",COUNTRY_INFO!B31))","v":" "},{"$f":"IF(INTRO!$E$37=\"Non-endemic\",\" \", IF(COUNTRY_INFO!C31=0,\" \",COUNTRY_INFO!C31))","v":" "},{"$f":"IF(INTRO!$E$37=\"Non-endemic\",0,IF(COUNTRY_INFO!$H31=1,COUNTRY_INFO!E31,0))","v":0},{"$f":"IF(INTRO!$E$37=\"Non-endemic\",0,IF(COUNTRY_INFO!$H31=1,COUNTRY_INFO!F31,0))","v":0},{"$f":"IF(INTRO!$E$37=\"Non-endemic\",0,IF(COUNTRY_INFO!$H31=1,COUNTRY_INFO!G31,0))","v":0},0,{"$f":"IF(INTRO!$E$37=\"Non-endemic\",\"Not required\",COUNTRY_INFO!N31)","v":"Not required"},0,0,null,0,0]
[{"$f":"IF(INTRO!$E$37=\"Non-endemic\",\" \", IF(COUNTRY_INFO!A32=0,\" \",COUNTRY_INFO!A32))","v":" "},{"$f":"IF(INTRO!$E$37=\"Non-endemic\",\" \", IF(COUNTRY_INFO!B32=0,\" \",COUNTRY_INFO!B32))","v":" "},{"$f":"IF(INTRO!$E$37=\"Non-endemic\",\" \", IF(COUNTRY_INFO!C32=0,\" \",COUNTRY_INFO!C32))","v":" "},{"$f":"IF(INTRO!$E$37=\"Non-endemic\",0,IF(COUNTRY_INFO!$H32=1,COUNTRY_INFO!E32,0))","v":0},{"$f":"IF(INTRO!$E$37=\"Non-endemic\",0,IF(COUNTRY_INFO!$H32=1,COUNTRY_INFO!F32,0))","v":0},{"$f":"IF(INTRO!$E$37=\"Non-endemic\",0,IF(COUNTRY_INFO!$H32=1,COUNTRY_INFO!G32,0))","v":0},0,{"$f":"IF(INTRO!$E$37=\"Non-endemic\",\"Not required\",COUNTRY_INFO!N32)","v":"Not required"},0,0,null,0,0]

{"sheet":"ALB_MBD","index":3,"n_rows":32,"n_cols":27,"rows_kept":32,"cut":false,"hidden":false,"merged":[[6,5,7,5],[6,6,7,6],[6,7,7,7],[6,14,6,17],[5,9,7,9],[6,10,6,13],[5,10,5,17],[5,8,7,8],[3,6,3,7],[5,0,5,2],[5,6,5,7],[5,3,5,5],[6,23,7,23],[5,18,5,23],[6,21,7,21],[6,18,7,18],[6,19,7,19],[6,0,7,0],[6,1,7,1],[6,2,7,2],[6,3,7,3],[3,0,3,2],[6,20,7,20],[6,4,7,4],[6,26,7,26],[5,24,5,26],[6,24,7,24],[6,25,7,25],[6,22,7,22]]}
["Albendazole (ALB) and Mebendazole (MBD)"]
["Administrative structure, eligible population by age group, treatment plan and information about tablets"]
[]
["TOTAL",null,null,{"$f":"SUM(D$9:D$1000)","v":208895},{"$f":"SUM(E$9:E$1000)","v":188008},{"$f":"SUM(F$9:F$1000)","v":396903},null,null,{"$f":"SUM(I$9:I$1000)","v":0},null,{"$f":"SUM(K$9:K$1000)","v":63595},{"$f":"SUM(L$9:L$1000)","v":57238},{"$f":"SUM(M$9:M$1000)","v":0},{"$f":"SUM(N$9:N$1000)","v":120833},{"$f":"SUM(O$9:O$1000)","v":0},{"$f":"SUM(P$9:P$1000)","v":0},0,0,0,0,0,0,57238,289,0,0,0]
[]
["Country administrative structure",null,null,"Population requiring treatment with ALB/MBD",null,null,"Treatment plan",null,"People covered by PELF with ALB","Select medicine for treatment of STH","Target population",null,null,null,null,null,null,null,"Albendazole (ALB)",null,null,null,null,null,"Mebendazole (MBD)"]
["Country","Province/State","District","PreSAC","SAC","Total","LF","STH",null,null,"STH (ALB)",null,null,null,"STH (MBD)",null,null,null,"Remaining in stock (LF)","Tablets to be procured (LF)","Bottle (400 mg)\n200 tablets (LF)","Remaining in stock (STH)","Tablets to be procured for SAC (STH)","Bottle (400 mg)\n200 tablets (STH)","Remaining in stock","Tablets to be procured for SAC","Bottles (500 mg)\n150 tablets"]
[null,null,null,null,null,null,null,null,null,null,"PreSAC","SAC","Other","Total","PreSAC","SAC","Other","Total"]
[{"$f":"IF(AND(INTRO!$E$37=\"Non-endemic\",INTRO!$E$41=\"Non-endemic\"),\" \",IF(COUNTRY_INFO!A9=0,\" \",COUNTRY_INFO!A9))","v":"Botswana"},{"$f":"IF(AND(INTRO!$E$37=\"Non-endemic\",INTRO!$E$41=\"Non-endemic\"),\" \",IF(COUNTRY_INFO!B9=0,\" \",COUNTRY_INFO!B9))","v":" "},{"$f":"IF(AND(INTRO!$E$37=\"Non-endemic\",INTRO!$E$41=\"Non-endemic\"),\" \",IF(COUNTRY_INFO!C9=0,\" \",COUNTRY_INFO!C9))","v":"BOBIRWA"},{"$f":"IF(AND(INTRO!$E$37=\"Non-endemic\",INTRO!$E$41=\"Non-endemic\"),0,IF(AND(OR(COUNTRY_INFO!$H9=0,COUNTRY_INFO!$H9=4,COUNTRY_INFO!$H9=99),OR(COUNTRY_INFO!$I9=0,COUNTRY_INFO!$I9=4)),0,COUNTRY_INFO!$E9))","v":0},{"$f":"IF(AND(INTRO!$E$37=\"Non-endemic\",INTRO!$E$41=\"Non-endemic\"),0,IF(AND(OR(COUNTRY_INFO!$H9=0,COUNTRY_INFO!$H9=4,COUNTRY_INFO!$H9=99),OR(COUNTRY_INFO!$I9=0,COUNTRY_INFO!$I9=4)),0,COUNTRY_INFO!$F9))","v":0},{"$f":"SUM(D9:E9)","v":0},{"$f":"IF(AND(INTRO!$E$37=\"Non-endemic\",INTRO!$E$41=\"Non-endemic\"),0,COUNTRY_INFO!N9)","v":0},{"$f":"IF(AND(INTRO!$E$37=\"Non-endemic\",INTRO!$E$41=\"Non-endemic\"),0,COUNTRY_INFO!O9)","v":0},{"$f":"IF($G9=1,DEC!I9,0)","v":0},"ALB",{"$f":"IF($J9=\"ALB\", IF($H9<>0, IF($I9=0, $D9*$H9, $D9*($H9-$G9)),0),0)","v":0},{"$f":"IF($J9=\"ALB\", IF($H9<>0, IF($I9=0, $E9*$H9, $E9*($H9-$G9)),0), 0)","v":0},null,{"$f":"SUM(K9:M9)","v":0},{"$f":"IF($J9=\"MBD\", IF($H9<>0, IF($I9=0, $D9*$H9, $D9*($H9-$G9)),0),0)","v":0},{"$f":"IF($J9=\"MBD\", IF($H9<>0,IF($I9=0, $E9*$H9, $E9*($H9-$G9)),0), 0 )","v":0},null,{"$f":"SUM(O9:Q9)","v":0},null,{"$f":"IF($I9>$S9, $I9-$S9,0)","v":0},{"$f":"ROUNDUP($I9/200,0)","v":0},null,{"$f":"IF($L9>$V9,$L9-$V9,0)","v":0},{"$f":"ROUNDUP($L9/200,0)","v":0},null,{"$f":"IF($P9>$Y9,$P9-$Y9,0)","v":0},{"$f":"ROUNDUP($P9/150,0)","v":0}]
[{"$f":"IF(AND(INTRO!$E$37=\"Non-endemic\",INTRO!$E$41=\"Non-endemic\"),\" \",IF(COUNTRY_INFO!A10=0,\" \",COUNTRY_INFO!A10))","v":"Botswana"},{"$f":"IF(AND(INTRO!$E$37=\"Non-endemic\",INTRO!$E$41=\"Non-endemic\"),\" \",IF(COUNTRY_INFO!B10=0,\" \",COUNTRY_INFO!B10))","v":" "},{"$f":"IF(AND(INTRO!$E$37=\"Non-endemic\",INTRO!$E$41=\"Non-endemic\"),\" \",IF(COUNTRY_INFO!C10=0,\" \",COUNTRY_INFO!C10))","v":"BOTETI"},{"$f":"IF(AND(INTRO!$E$37=\"Non-endemic\",INTRO!$E$41=\"Non-endemic\"),0,IF(AND(OR(COUNTRY_INFO!$H10=0,COUNTRY_INFO!$H10=4,COUNTRY_INFO!$H10=99),OR(COUNTRY_INFO!$I10=0,COUNTRY_INFO!$I10=4)),0,COUNTRY_INFO!$E10))","v":7214},{"$f":"IF(AND(INTRO!$E$37=\"Non-endemic\",INTRO!$E$41=\"Non-endemic\"),0,IF(AND(OR(COUNTRY_INFO!$H10=0,COUNTRY_INFO!$H10=4,COUNTRY_INFO!$H10=99),OR(COUNTRY_INFO!$I10=0,COUNTRY_INFO!$I10=4)),0,COUNTRY_INFO!$F10))","v":6493},13707,{"$f":"IF(AND(INTRO!$E$37=\"Non-endemic\",INTRO!$E$41=\"Non-endemic\"),0,COUNTRY_INFO!N10)","v":0},{"$f":"IF(AND(INTRO!$E$37=\"Non-endemic\",INTRO!$E$41=\"Non-endemic\"),0,COUNTRY_INFO!O10)","v":0},{"$f":"IF($G10=1,DEC!I10,0)","v":0},"ALB",0,0,null,0,0,0,null,0,null,0,0,null,0,0,null,0,0]
[{"$f":"IF(AND(INTRO!$E$37=\"Non-endemic\",INTRO!$E$41=\"Non-endemic\"),\" \",IF(COUNTRY_INFO!A11=0,\" \",COUNTRY_INFO!A11))","v":"Botswana"},{"$f":"IF(AND(INTRO!$E$37=\"Non-endemic\",INTRO!$E$41=\"Non-endemic\"),\" \",IF(COUNTRY_INFO!B11=0,\" \",COUNTRY_INFO!B11))","v":" "},{"$f":"IF(AND(INTRO!$E$37=\"Non-endemic\",INTRO!$E$41=\"Non-endemic\"),\" \",IF(COUNTRY_INFO!C11=0,\" \",COUNTRY_INFO!C11))","v":"CHOBE"},{"$f":"IF(AND(INTRO!$E$37=\"Non-endemic\",INTRO!$E$41=\"Non-endemic\"),0,IF(AND(OR(COUNTRY_INFO!$H11=0,COUNTRY_INFO!$H11=4,COUNTRY_INFO!$H11=99),OR(COUNTRY_INFO!$I11=0,COUNTRY_INFO!$I11=4)),0,COUNTRY_INFO!$E11))","v":2517},{"$f":"IF(AND(INTRO!$E$37=\"Non-endemic\",INTRO!$E$41=\"Non-endemic\"),0,IF(AND(OR(COUNTRY_INFO!$H11=0,COUNTRY_INFO!$H11=4,COUNTRY_INFO!$H11=99),OR(COUNTRY_INFO!$I11=0,COUNTRY_INFO!$I11=4)),0,COUNTRY_INFO!$F11))","v":2266},4783,{"$f":"IF(AND(INTRO!$E$37=\"Non-endemic\",INTRO!$E$41=\"Non-endemic\"),0,COUNTRY_INFO!N11)","v":0},{"$f":"IF(AND(INTRO!$E$37=\"Non-endemic\",INTRO!$E$41=\"Non-endemic\"),0,COUNTRY_INFO!O11)","v":2},{"$f":"IF($G11=1,DEC!I11,0)","v":0},"ALB",5034,4532,null,9566,0,0,null,0,null,0,0,null,4532,23,null,0,0]
[{"$f":"IF(AND(INTRO!$E$37=\"Non-endemic\",INTRO!$E$41=\"Non-endemic\"),\" \",IF(COUNTRY_INFO!A12=0,\" \",COUNTRY_INFO!A12))","v":"Botswana"},{"$f":"IF(AND(INTRO!$E$37=\"Non-endemic\",INTRO!$E$41=\"Non-endemic\"),\" \",IF(COUNTRY_INFO!B12=0,\" \",COUNTRY_INFO!B12))","v":" "},{"$f":"IF(AND(INTRO!$E$37=\"Non-endemic\",INTRO!$E$41=\"Non-endemic\"),\" \",IF(COUNTRY_INFO!C12=0,\" \",COUNTRY_INFO!C12))","v":"FRANCISTOWN"},{"$f":"IF(AND(INTRO!$E$37=\"Non-endemic\",INTRO!$E$41=\"Non-endemic\"),0,IF(AND(OR(COUNTRY_INFO!$H12=0,COUNTRY_INFO!$H12=4,COUNTRY_INFO!$H12=99),OR(COUNTRY_INFO!$I12=0,COUNTRY_INFO!$I12=4)),0,COUNTRY_INFO!$E12))","v":14192},{"$f":"IF(AND(INTRO!$E$37=\"Non-endemic\",INTRO!$E$41=\"Non-endemic\"),0,IF(AND(OR(COUNTRY_INFO!$H12=0,COUNTRY_INFO!$H12=4,COUNTRY_INFO!$H12=99),OR(COUNTRY_INFO!$I12=0,COUNTRY_INFO!$I12=4)),0,COUNTRY_INFO!$F12))","v":12773},26965,{"$f":"IF(AND(INTRO!$E$37=\"Non-endemic\",INTRO!$E$41=\"Non-endemic\"),0,COUNTRY_INFO!N12)","v":0},{"$f":"IF(AND(INTRO!$E$37=\"Non-endemic\",INTRO!$E$41=\"Non-endemic\"),0,COUNTRY_INFO!O12)","v":0},{"$f":"IF($G12=1,DEC!I12,0)","v":0},"ALB",0,0,null,0,0,0,null,0,null,0,0,null,0,0,null,0,0]
[{"$f":"IF(AND(INTRO!$E$37=\"Non-endemic\",INTRO!$E$41=\"Non-endemic\"),\" \",IF(COUNTRY_INFO!A13=0,\" \",COUNTRY_INFO!A13))","v":"Botswana"},{"$f":"IF(AND(INTRO!$E$37=\"Non-endemic\",INTRO!$E$41=\"Non-endemic\"),\" \",IF(COUNTRY_INFO!B13=0,\" \",COUNTRY_INFO!B13))","v":" "},{"$f":"IF(AND(INTRO!$E$37=\"Non-endemic\",INTRO!$E$41=\"Non-endemic\"),\" \",IF(COUNTRY_INFO!C13=0,\" \",COUNTRY_INFO!C13))","v":"GABORONE"},{"$f":"IF(AND(INTRO!$E$37=\"Non-endemic\",INTRO!$E$41=\"Non-endemic\"),0,IF(AND(OR(COUNTRY_INFO!$H13=0,COUNTRY_INFO!$H13=4,COUNTRY_INFO!$H13=99),OR(COUNTRY_INFO!$I13=0,COUNTRY_INFO!$I13=4)),0,COUNTRY_INFO!$E13))","v":28602},{"$f":"IF(AND(INTRO!$E$37=\"Non-endemic\",INTRO!$E$41=\"Non-endemic\"),0,IF(AND(OR(COUNTRY_INFO!$H13=0,COUNTRY_INFO!$H13=4,COUNTRY_INFO!$H13=99),OR(COUNTRY_INFO!$I13=0,COUNTRY_INFO!$I13=4)),0,COUNTRY_INFO!$F13))","v":25742},54344,{"$f":"IF(AND(INTRO!$E$37=\"Non-endemic\",INTRO!$E$41=\"Non-endemic\"),0,COUNTRY_INFO!N13)","v":0},{"$f":"IF(AND(INTRO!$E$37=\"Non-endemic\",INTRO!$E$41=\"Non-endemic\"),0,COUNTRY_INFO!O13)","v":0},{"$f":"IF($G13=1,DEC!I13,0)","v":0},"ALB",0,0,null,0,0,0,null,0,null,0,0,null,0,0,null,0,0]
[{"$f":"IF(AND(INTRO!$E$37=\"Non-endemic\",INTRO!$E$41=\"Non-endemic\"),\" \",IF(COUNTRY_INFO!A14=0,\" \",COUNTRY_INFO!A14))","v":"Botswana"},{"$f":"IF(AND(INTRO!$E$37=\"Non-endemic\",INTRO!$E$41=\"Non-endemic\"),\" \",IF(COUNTRY_INFO!B14=0,\" \",COUNTRY_INFO!B14))","v":" "},{"$f":"IF(AND(INTRO!$E$37=\"Non-endemic\",INTRO!$E$41=\"Non-endemic\"),\" \",IF(COUNTRY_INFO!C14=0,\" \",COUNTRY_INFO!C14))","v":"GANTSI/CHARLESHILL"},{"$f":"IF(AND(INTRO!$E$37=\"Non-endemic\",INTRO!$E$41=\"Non-endemic\"),0,IF(AND(OR(COUNTRY_INFO!$H14=0,COUNTRY_INFO!$H14=4,COUNTRY_INFO!$H14=99),OR(COUNTRY_INFO!$I14=0,COUNTRY_INFO!$I14=4)),0,COUNTRY_INFO!$E14))","v":3558},{"$f":"IF(AND(INTRO!$E$37=\"Non-endemic\",INTRO!$E$41=\"Non-endemic\"),0,IF(AND(OR(COUNTRY_INFO!$H14=0,COUNTRY_INFO!$H14=4,COUNTRY_INFO!$H14=99),OR(COUNTRY_INFO!$I14=0,COUNTRY_INFO!$I14=4)),0,COUNTRY_INFO!$F14))","v":3202},6760,{"$f":"IF(AND(INTRO!$E$37=\"Non-endemic\",INTRO!$E$41=\"Non-endemic\"),0,COUNTRY_INFO!N14)","v":0},{"$f":"IF(AND(INTRO!$E$37=\"Non-endemic\",INTRO!$E$41=\"Non-endemic\"),0,COUNTRY_INFO!O14)","v":0},{"$f":"IF($G14=1,DEC!I14,0)","v":0},"ALB",0,0,null,0,0,0,null,0,null,0,0,null,0,0,null,0,0]
[{"$f":"IF(AND(INTRO!$E$37=\"Non-endemic\",INTRO!$E$41=\"Non-endemic\"),\" \",IF(COUNTRY_INFO!A15=0,\" \",COUNTRY_INFO!A15))","v":"Botswana"},{"$f":"IF(AND(INTRO!$E$37=\"Non-endemic\",INTRO!$E$41=\"Non-endemic\"),\" \",IF(COUNTRY_INFO!B15=0,\" \",COUNTRY_INFO!B15))","v":" "},{"$f":"IF(AND(INTRO!$E$37=\"Non-endemic\",INTRO!$E$41=\"Non-endemic\"),\" \",IF(COUNTRY_INFO!C15=0,\" \",COUNTRY_INFO!C15))","v":"GOODHOPE"},{"$f":"IF(AND(INTRO!$E$37=\"Non-endemic\",INTRO!$E$41=\"Non-endemic\"),0,IF(AND(OR(COUNTRY_INFO!$H15=0,COUNTRY_INFO!$H15=4,COUNTRY_INFO!$H15=99),OR(COUNTRY_INFO!$I15=0,COUNTRY_INFO!$I15=4)),0,COUNTRY_INFO!$E15))","v":5557},{"$f":"IF(AND(INTRO!$E$37=\"Non-endemic\",INTRO!$E$41=\"Non-endemic\"),0,IF(AND(OR(COUNTRY_INFO!$H15=0,COUNTRY_INFO!$H15=4,COUNTRY_INFO!$H15=99),OR(COUNTRY_INFO!$I15=0,COUNTRY_INFO!$I15=4)),0,COUNTRY_INFO!$F15))","v":5001},10558,{"$f":"IF(AND(INTRO!$E$37=\"Non-endemic\",INTRO!$E$41=\"Non-endemic\"),0,COUNTRY_INFO!N15)","v":0},{"$f":"IF(AND(INTRO!$E$37=\"Non-endemic\",INTRO!$E$41=\"Non-endemic\"),0,COUNTRY_INFO!O15)","v":0},{"$f":"IF($G15=1,DEC!I15,0)","v":0},"ALB",0,0,null,0,0,0,null,0,null,0,0,null,0,0,null,0,0]
[{"$f":"IF(AND(INTRO!$E$37=\"Non-endemic\",INTRO!$E$41=\"Non-endemic\"),\" \",IF(COUNTRY_INFO!A16=0,\" \",COUNTRY_INFO!A16))","v":"Botswana"},{"$f":"IF(AND(INTRO!$E$37=\"Non-endemic\",INTRO!$E$41=\"Non-endemic\"),\" \",IF(COUNTRY_INFO!B16=0,\" \",COUNTRY_INFO!B16))","v":" "},{"$f":"IF(AND(INTRO!$E$37=\"Non-endemic\",INTRO!$E$41=\"Non-endemic\"),\" \",IF(COUNTRY_INFO!C16=0,\" \",COUNTRY_INFO!C16))","v":"JWANENG"},{"$f":"IF(AND(INTRO!$E$37=\"Non-endemic\",INTRO!$E$41=\"Non-endemic\"),0,IF(AND(OR(COUNTRY_INFO!$H16=0,COUNTRY_INFO!$H16=4,COUNTRY_INFO!$H16=99),OR(COUNTRY_INFO!$I16=0,COUNTRY_INFO!$I16=4)),0,COUNTRY_INFO!$E16))","v":2753},{"$f":"IF(AND(INTRO!$E$37=\"Non-endemic\",INTRO!$E$41=\"Non-endemic\"),0,IF(AND(OR(COUNTRY_INFO!$H16=0,COUNTRY_INFO!$H16=4,COUNTRY_INFO!$H16=99),OR(COUNTRY_INFO!$I16=0,COUNTRY_INFO!$I16=4)),0,COUNTRY_INFO!$F16))","v":2478},5231,{"$f":"IF(AND(INTRO!$E$37=\"Non-endemic\",INTRO!$E$41=\"Non-endemic\"),0,COUNTRY_INFO!N16)","v":0},{"$f":"IF(AND(INTRO!$E$37=\"Non-endemic\",INTRO!$E$41=\"Non-endemic\"),0,COUNTRY_INFO!O16)","v":1},{"$f":"IF($G16=1,DEC!I16,0)","v":0},"ALB",2753,2478,null,5231,0,0,null,0,null,0,0,null,2478,13,null,0,0]
[{"$f":"IF(AND(INTRO!$E$37=\"Non-endemic\",INTRO!$E$41=\"Non-endemic\"),\" \",IF(COUNTRY_INFO!A17=0,\" \",COUNTRY_INFO!A17))","v":"Botswana"},{"$f":"IF(AND(INTRO!$E$37=\"Non-endemic\",INTRO!$E$41=\"Non-endemic\"),\" \",IF(COUNTRY_INFO!B17=0,\" \",COUNTRY_INFO!B17))","v":" "},{"$f":"IF(AND(INTRO!$E$37=\"Non-endemic\",INTRO!$E$41=\"Non-endemic\"),\" \",IF(COUNTRY_INFO!C17=0,\" \",COUNTRY_INFO!C17))","v":"KANYE/MOSHOPA"},{"$f":"IF(AND(INTRO!$E$37=\"Non-endemic\",INTRO!$E$41=\"Non-endemic\"),0,IF(AND(OR(COUNTRY_INFO!$H17=0,COUNTRY_INFO!$H17=4,COUNTRY_INFO!$H17=99),OR(COUNTRY_INFO!$I17=0,COUNTRY_INFO!$I17=4)),0,COUNTRY_INFO!$E17))","v":13935},{"$f":"IF(AND(INTRO!$E$37=\"Non-endemic\",INTRO!$E$41=\"Non-endemic\"),0,IF(AND(OR(COUNTRY_INFO!$H17=0,COUNTRY_INFO!$H17=4,COUNTRY_INFO!$H17=99),OR(COUNTRY_INFO!$I17=0,COUNTRY_INFO!$I17=4)),0,COUNTRY_INFO!$F17))","v":12542},26477,{"$f":"IF(AND(INTRO!$E$37=\"Non-endemic\",INTRO!$E$41=\"Non-endemic\"),0,COUNTRY_INFO!N17)","v":0},{"$f":"IF(AND(INTRO!$E$37=\"Non-endemic\",INTRO!$E$41=\"Non-endemic\"),0,COUNTRY_INFO!O17)","v":0},{"$f":"IF($G17=1,DEC!I17,0)","v":0},"ALB",0,0,null,0,0,0,null,0,null,0,0,null,0,0,null,0,0]
[{"$f":"IF(AND(INTRO!$E$37=\"Non-endemic\",INTRO!$E$41=\"Non-endemic\"),\" \",IF(COUNTRY_INFO!A18=0,\" \",COUNTRY_INFO!A18))","v":"Botswana"},{"$f":"IF(AND(INTRO!$E$37=\"Non-endemic\",INTRO!$E$41=\"Non-endemic\"),\" \",IF(COUNTRY_INFO!B18=0,\" \",COUNTRY_INFO!B18))","v":" "},{"$f":"IF(AND(INTRO!$E$37=\"Non-endemic\",INTRO!$E$41=\"Non-endemic\"),\" \",IF(COUNTRY_INFO!C18=0,\" \",COUNTRY_INFO!C18))","v":"KGALAGADI NORTH"},{"$f":"IF(AND(INTRO!$E$37=\"Non-endemic\",INTRO!$E$41=\"Non-endemic\"),0,IF(AND(OR(COUNTRY_INFO!$H18=0,COUNTRY_INFO!$H18=4,COUNTRY_INFO!$H18=99),OR(COUNTRY_INFO!$I18=0,COUNTRY_INFO!$I18=4)),0,COUNTRY_INFO!$E18))","v":2208},{"$f":"IF(AND(INTRO!$E$37=\"Non-endemic\",INTRO!$E$41=\"Non-endemic\"),0,IF(AND(OR(COUNTRY_INFO!$H18=0,COUNTRY_INFO!$H18=4,COUNTRY_INFO!$H18=99),OR(COUNTRY_INFO!$I18=0,COUNTRY_INFO!$I18=4)),0,COUNTRY_INFO!$F18))","v":1987},4195,{"$f":"IF(AND(INTRO!$E$37=\"Non-endemic\",INTRO!$E$41=\"Non-endemic\"),0,COUNTRY_INFO!N18)","v":0},{"$f":"IF(AND(INTRO!$E$37=\"Non-endemic\",INTRO!$E$41=\"Non-endemic\"),0,COUNTRY_INFO!O18)","v":0},{"$f":"IF($G18=1,DEC!I18,0)","v":0},"ALB",0,0,null,0,0,0,null,0,null,0,0,null,0,0,null,0,0]
[{"$f":"IF(AND(INTRO!$E$37=\"Non-endemic\",INTRO!$E$41=\"Non-endemic\"),\" \",IF(COUNTRY_INFO!A19=0,\" \",COUNTRY_INFO!A19))","v":"Botswana"},{"$f":"IF(AND(INTRO!$E$37=\"Non-endemic\",INTRO!$E$41=\"Non-endemic\"),\" \",IF(COUNTRY_INFO!B19=0,\" \",COUNTRY_INFO!B19))","v":" "},{"$f":"IF(AND(INTRO!$E$37=\"Non-endemic\",INTRO!$E$41=\"Non-endemic\"),\" \",IF(COUNTRY_INFO!C19=0,\" \",COUNTRY_INFO!C19))","v":"KGALAGADI SOUTH"},{"$f":"IF(AND(INTRO!$E$37=\"Non-endemic\",INTRO!$E$41=\"Non-endemic\"),0,IF(AND(OR(COUNTRY_INFO!$H19=0,COUNTRY_INFO!$H19=4,COUNTRY_INFO!$H19=99),OR(COUNTRY_INFO!$I19=0,COUNTRY_INFO!$I19=4)),0,COUNTRY_INFO!$E19))","v":3236},{"$f":"IF(AND(INTRO!$E$37=\"Non-endemic\",INTRO!$E$41=\"Non-endemic\"),0,IF(AND(OR(COUNTRY_INFO!$H19=0,COUNTRY_INFO!$H19=4,COUNTRY_INFO!$H19=99),OR(COUNTRY_INFO!$I19=0,COUNTRY_INFO!$I19=4)),0,COUNTRY_INFO!$F19))","v":2913},6149,{"$f":"IF(AND(INTRO!$E$37=\"Non-endemic\",INTRO!$E$41=\"Non-endemic\"),0,COUNTRY_INFO!N19)","v":0},{"$f":"IF(AND(INTRO!$E$37=\"Non-endemic\",INTRO!$E$41=\"Non-endemic\"),0,COUNTRY_INFO!O19)","v":1},{"$f":"IF($G19=1,DEC!I19,0)","v":0},"ALB",3236,2913,null,6149,0,0,null,0,null,0,0,null,2913,15,null,0,0]
[{"$f":"IF(AND(INTRO!$E$37=\"Non-endemic\",INTRO!$E$41=\"Non-endemic\"),\" \",IF(COUNTRY_INFO!A20=0,\" \",COUNTRY_INFO!A20))","v":"Botswana"},{"$f":"IF(AND(INTRO!$E$37=\"Non-endemic\",INTRO!$E$41=\"Non-endemic\"),\" \",IF(COUNTRY_INFO!B20=0,\" \",COUNTRY_INFO!B20))","v":" "},{"$f":"IF(AND(INTRO!$E$37=\"Non-endemic\",INTRO!$E$41=\"Non-endemic\"),\" \",IF(COUNTRY_INFO!C20=0,\" \",COUNTRY_INFO!C20))","v":"KGATLENG"},{"$f":"IF(AND(INTRO!$E$37=\"Non-endemic\",INTRO!$E$41=\"Non-endemic\"),0,IF(AND(OR(COUNTRY_INFO!$H20=0,COUNTRY_INFO!$H20=4,COUNTRY_INFO!$H20=99),OR(COUNTRY_INFO!$I20=0,COUNTRY_INFO!$I20=4)),0,COUNTRY_INFO!$E20))","v":9883},{"$f":"IF(AND(INTRO!$E$37=\"Non-endemic\",INTRO!$E$41=\"Non-endemic\"),0,IF(AND(OR(COUNTRY_INFO!$H20=0,COUNTRY_INFO!$H20=4,COUNTRY_INFO!$H20=99),OR(COUNTRY_INFO!$I20=0,COUNTRY_INFO!$I20=4)),0,COUNTRY_INFO!$F20))","v":8894},18777,{"$f":"IF(AND(INTRO!$E$37=\"Non-endemic\",INTRO!$E$41=\"Non-endemic\"),0,COUNTRY_INFO!N20)","v":0},{"$f":"IF(AND(INTRO!$E$37=\"Non-endemic\",INTRO!$E$41=\"Non-endemic\"),0,COUNTRY_INFO!O20)","v":0},{"$f":"IF($G20=1,DEC!I20,0)","v":0},"ALB",0,0,null,0,0,0,null,0,null,0,0,null,0,0,null,0,0]
[{"$f":"IF(AND(INTRO!$E$37=\"Non-endemic\",INTRO!$E$41=\"Non-endemic\"),\" \",IF(COUNTRY_INFO!A21=0,\" \",COUNTRY_INFO!A21))","v":"Botswana"},{"$f":"IF(AND(INTRO!$E$37=\"Non-endemic\",INTRO!$E$41=\"Non-endemic\"),\" \",IF(COUNTRY_INFO!B21=0,\" \",COUNTRY_INFO!B21))","v":" "},{"$f":"IF(AND(INTRO!$E$37=\"Non-endemic\",INTRO!$E$41=\"Non-endemic\"),\" \",IF(COUNTRY_INFO!C21=0,\" \",COUNTRY_INFO!C21))","v":"KWENENG EAST"},{"$f":"IF(AND(INTRO!$E$37=\"Non-endemic\",INTRO!$E$41=\"Non-endemic\"),0,IF(AND(OR(COUNTRY_INFO!$H21=0,COUNTRY_INFO!$H21=4,COUNTRY_INFO!$H21=99),OR(COUNTRY_INFO!$I21=0,COUNTRY_INFO!$I21=4)),0,COUNTRY_INFO!$E21))","v":27683},{"$f":"IF(AND(INTRO!$E$37=\"Non-endemic\",INTRO!$E$41=\"Non-endemic\"),0,IF(AND(OR(COUNTRY_INFO!$H21=0,COUNTRY_INFO!$H21=4,COUNTRY_INFO!$H21=99),OR(COUNTRY_INFO!$I21=0,COUNTRY_INFO!$I21=4)),0,COUNTRY_INFO!$F21))","v":24915},52598,{"$f":"IF(AND(INTRO!$E$37=\"Non-endemic\",INTRO!$E$41=\"Non-endemic\"),0,COUNTRY_INFO!N21)","v":0},{"$f":"IF(AND(INTRO!$E$37=\"Non-endemic\",INTRO!$E$41=\"Non-endemic\"),0,COUNTRY_INFO!O21)","v":0},{"$f":"IF($G21=1,DEC!I21,0)","v":0},"ALB",0,0,null,0,0,0,null,0,null,0,0,null,0,0,null,0,0]
[{"$f":"IF(AND(INTRO!$E$37=\"Non-endemic\",INTRO!$E$41=\"Non-endemic\"),\" \",IF(COUNTRY_INFO!A22=0,\" \",COUNTRY_INFO!A22))","v":"Botswana"},{"$f":"IF(AND(INTRO!$E$37=\"Non-endemic\",INTRO!$E$41=\"Non-endemic\"),\" \",IF(COUNTRY_INFO!B22=0,\" \",COUNTRY_INFO!B22))","v":" "},{"$f":"IF(AND(INTRO!$E$37=\"Non-endemic\",INTRO!$E$41=\"Non-endemic\"),\" \",IF(COUNTRY_INFO!C22=0,\" \",COUNTRY_INFO!C22))","v":"KWENENG WEST"},{"$f":"IF(AND(INTRO!$E$37=\"Non-endemic\",INTRO!$E$41=\"Non-endemic\"),0,IF(AND(OR(COUNTRY_INFO!$H22=0,COUNTRY_INFO!$H22=4,COUNTRY_INFO!$H22=99),OR(COUNTRY_INFO!$I22=0,COUNTRY_INFO!$I22=4)),0,COUNTRY_INFO!$E22))","v":5153},{"$f":"IF(AND(INTRO!$E$37=\"Non-endemic\",INTRO!$E$41=\"Non-endemic\"),0,IF(AND(OR(COUNTRY_INFO!$H22=0,COUNTRY_INFO!$H22=4,COUNTRY_INFO!$H22=99),OR(COUNTRY_INFO!$I22=0,COUNTRY_INFO!$I22=4)),0,COUNTRY_INFO!$F22))","v":4638},9791,{"$f":"IF(AND(INTRO!$E$37=\"Non-endemic\",INTRO!$E$41=\"Non-endemic\"),0,COUNTRY_INFO!N22)","v":0},{"$f":"IF(AND(INTRO!$E$37=\"Non-endemic\",INTRO!$E$41=\"Non-endemic\"),0,COUNTRY_INFO!O22)","v":0},{"$f":"IF($G22=1,DEC!I22,0)","v":0},"ALB",0,0,null,0,0,0,null,0,null,0,0,null,0,0,null,0,0]
[{"$f":"IF(AND(INTRO!$E$37=\"Non-endemic\",INTRO!$E$41=\"Non-endemic\"),\" \",IF(COUNTRY_INFO!A23=0,\" \",COUNTRY_INFO!A23))","v":"Botswana"},{"$f":"IF(AND(INTRO!$E$37=\"Non-endemic\",INTRO!$E$41=\"Non-endemic\"),\" \",IF(COUNTRY_INFO!B23=0,\" \",COUNTRY_INFO!B23))","v":" "},{"$f":"IF(AND(INTRO!$E$37=\"Non-endemic\",INTRO!$E$41=\"Non-endemic\"),\" \",IF(COUNTRY_INFO!C23=0,\" \",COUNTRY_INFO!C23))","v":"LOBATSE"},{"$f":"IF(AND(INTRO!$E$37=\"Non-endemic\",INTRO!$E$41=\"Non-endemic\"),0,IF(AND(OR(COUNTRY_INFO!$H23=0,COUNTRY_INFO!$H23=4,COUNTRY_INFO!$H23=99),OR(COUNTRY_INFO!$I23=0,COUNTRY_INFO!$I23=4)),0,COUNTRY_INFO!$E23))","v":3483},{"$f":"IF(AND(INTRO!$E$37=\"Non-endemic\",INTRO!$E$41=\"Non-endemic\"),0,IF(AND(OR(COUNTRY_INFO!$H23=0,COUNTRY_INFO!$H23=4,COUNTRY_INFO!$H23=99),OR(COUNTRY_INFO!$I23=0,COUNTRY_INFO!$I23=4)),0,COUNTRY_INFO!$F23))","v":3135},6618,{"$f":"IF(AND(INTRO!$E$37=\"Non-endemic\",INTRO!$E$41=\"Non-endemic\"),0,COUNTRY_INFO!N23)","v":0},{"$f":"IF(AND(INTRO!$E$37=\"Non-endemic\",INTRO!$E$41=\"Non-endemic\"),0,COUNTRY_INFO!O23)","v":1},{"$f":"IF($G23=1,DEC!I23,0)","v":0},"ALB",3483,3135,null,6618,0,0,null,0,null,0,0,null,3135,16,null,0,0]
[{"$f":"IF(AND(INTRO!$E$37=\"Non-endemic\",INTRO!$E$41=\"Non-endemic\"),\" \",IF(COUNTRY_INFO!A24=0,\" \",COUNTRY_INFO!A24))","v":"Botswana"},{"$f":"IF(AND(INTRO!$E$37=\"Non-endemic\",INTRO!$E$41=\"Non-endemic\"),\" \",IF(COUNTRY_INFO!B24=0,\" \",COUNTRY_INFO!B24))","v":" "},{"$f":"IF(AND(INTRO!$E$37=\"Non-endemic\",INTRO!$E$41=\"Non-endemic\"),\" \",IF(COUNTRY_INFO!C24=0,\" \",COUNTRY_INFO!C24))","v":"MABUTSANE"},{"$f":"IF(AND(INTRO!$E$37=\"Non-endemic\",INTRO!$E$41=\"Non-endemic\"),0,IF(AND(OR(COUNTRY_INFO!$H24=0,COUNTRY_INFO!$H24=4,COUNTRY_INFO!$H24=99),OR(COUNTRY_INFO!$I24=0,COUNTRY_INFO!$I24=4)),0,COUNTRY_INFO!$E24))","v":664},{"$f":"IF(AND(INTRO!$E$37=\"Non-endemic\",INTRO!$E$41=\"Non-endemic\"),0,IF(AND(OR(COUNTRY_INFO!$H24=0,COUNTRY_INFO!$H24=4,COUNTRY_INFO!$H24=99),OR(COUNTRY_INFO!$I24=0,COUNTRY_INFO!$I24=4)),0,COUNTRY_INFO!$F24))","v":598},1262,{"$f":"IF(AND(INTRO!$E$37=\"Non-endemic\",INTRO!$E$41=\"Non-endemic\"),0,COUNTRY_INFO!N24)","v":0},{"$f":"IF(AND(INTRO!$E$37=\"Non-endemic\",INTRO!$E$41=\"Non-endemic\"),0,COUNTRY_INFO!O24)","v":1},{"$f":"IF($G24=1,DEC!I24,0)","v":0},"ALB",664,598,null,1262,0,0,null,0,null,0,0,null,598,3,null,0,0]
[{"$f":"IF(AND(INTRO!$E$37=\"Non-endemic\",INTRO!$E$41=\"Non-endemic\"),\" \",IF(COUNTRY_INFO!A25=0,\" \",COUNTRY_INFO!A25))","v":"Botswana"},{"$f":"IF(AND(INTRO!$E$37=\"Non-endemic\",INTRO!$E$41=\"Non-endemic\"),\" \",IF(COUNTRY_INFO!B25=0,\" \",COUNTRY_INFO!B25))","v":" "},{"$f":"IF(AND(INTRO!$E$37=\"Non-endemic\",INTRO!$E$41=\"Non-endemic\"),\" \",IF(COUNTRY_INFO!C25=0,\" \",COUNTRY_INFO!C25))","v":"MAHALAPYE"},{"$f":"IF(AND(INTRO!$E$37=\"Non-endemic\",INTRO!$E$41=\"Non-endemic\"),0,IF(AND(OR(COUNTRY_INFO!$H25=0,COUNTRY_INFO!$H25=4,COUNTRY_INFO!$H25=99),OR(COUNTRY_INFO!$I25=0,COUNTRY_INFO!$I25=4)),0,COUNTRY_INFO!$E25))","v":12817},{"$f":"IF(AND(INTRO!$E$37=\"Non-endemic\",INTRO!$E$41=\"Non-endemic\"),0,IF(AND(OR(COUNTRY_INFO!$H25=0,COUNTRY_INFO!$H25=4,COUNTRY_INFO!$H25=99),OR(COUNTRY_INFO!$I25=0,COUNTRY_INFO!$I25=4)),0,COUNTRY_INFO!$F25))","v":11535},24352,{"$f":"IF(AND(INTRO!$E$37=\"Non-endemic\",INTRO!$E$41=\"Non-endemic\"),0,COUNTRY_INFO!N25)","v":0},{"$f":"IF(AND(INTRO!$E$37=\"Non-endemic\",INTRO!$E$41=\"Non-endemic\"),0,COUNTRY_INFO!O25)","v":1},{"$f":"IF($G25=1,DEC!I25,0)","v":0},"ALB",12817,11535,null,24352,0,0,null,0,null,0,0,null,11535,58,null,0,0]
[{"$f":"IF(AND(INTRO!$E$37=\"Non-endemic\",INTRO!$E$41=\"Non-endemic\"),\" \",IF(COUNTRY_INFO!A26=0,\" \",COUNTRY_INFO!A26))","v":"Botswana"},{"$f":"IF(AND(INTRO!$E$37=\"Non-endemic\",INTRO!$E$41=\"Non-endemic\"),\" \",IF(COUNTRY_INFO!B26=0,\" \",COUNTRY_INFO!B26))","v":" "},{"$f":"IF(AND(INTRO!$E$37=\"Non-endemic\",INTRO!$E$41=\"Non-endemic\"),\" \",IF(COUNTRY_INFO!C26=0,\" \",COUNTRY_INFO!C26))","v":"NGAMILAND"},{"$f":"IF(AND(INTRO!$E$37=\"Non-endemic\",INTRO!$E$41=\"Non-endemic\"),0,IF(AND(OR(COUNTRY_INFO!$H26=0,COUNTRY_INFO!$H26=4,COUNTRY_INFO!$H26=99),OR(COUNTRY_INFO!$I26=0,COUNTRY_INFO!$I26=4)),0,COUNTRY_INFO!$E26))","v":9740},{"$f":"IF(AND(INTRO!$E$37=\"Non-endemic\",INTRO!$E$41=\"Non-endemic\"),0,IF(AND(OR(COUNTRY_INFO!$H26=0,COUNTRY_INFO!$H26=4,COUNTRY_INFO!$H26=99),OR(COUNTRY_INFO!$I26=0,COUNTRY_INFO!$I26=4)),0,COUNTRY_INFO!$F26))","v":8766},18506,{"$f":"IF(AND(INTRO!$E$37=\"Non-endemic\",INTRO!$E$41=\"Non-endemic\"),0,COUNTRY_INFO!N26)","v":0},{"$f":"IF(AND(INTRO!$E$37=\"Non-endemic\",INTRO!$E$41=\"Non-endemic\"),0,COUNTRY_INFO!O26)","v":1},{"$f":"IF($G26=1,DEC!I26,0)","v":0},"ALB",9740,8766,null,18506,0,0,null,0,null,0,0,null,8766,44,null,0,0]
[{"$f":"IF(AND(INTRO!$E$37=\"Non-endemic\",INTRO!$E$41=\"Non-endemic\"),\" \",IF(COUNTRY_INFO!A27=0,\" \",COUNTRY_INFO!A27))","v":"Botswana"},{"$f":"IF(AND(INTRO!$E$37=\"Non-endemic\",INTRO!$E$41=\"Non-endemic\"),\" \",IF(COUNTRY_INFO!B27=0,\" \",COUNTRY_INFO!B27))","v":" "},{"$f":"IF(AND(INTRO!$E$37=\"Non-endemic\",INTRO!$E$41=\"Non-endemic\"),\" \",IF(COUNTRY_INFO!C27=0,\" \",COUNTRY_INFO!C27))","v":"NORTH EAST"},{"$f":"IF(AND(INTRO!$E$37=\"Non-endemic\",INTRO!$E$41=\"Non-endemic\"),0,IF(AND(OR(COUNTRY_INFO!$H27=0,COUNTRY_INFO!$H27=4,COUNTRY_INFO!$H27=99),OR(COUNTRY_INFO!$I27=0,COUNTRY_INFO!$I27=4)),0,COUNTRY_INFO!$E27))","v":6498},{"$f":"IF(AND(INTRO!$E$37=\"Non-endemic\",INTRO!$E$41=\"Non-endemic\"),0,IF(AND(OR(COUNTRY_INFO!$H27=0,COUNTRY_INFO!$H27=4,COUNTRY_INFO!$H27=99),OR(COUNTRY_INFO!$I27=0,COUNTRY_INFO!$I27=4)),0,COUNTRY_INFO!$F27))","v":5848},12346,{"$f":"IF(AND(INTRO!$E$37=\"Non-endemic\",INTRO!$E$41=\"Non-endemic\"),0,COUNTRY_INFO!N27)","v":0},{"$f":"IF(AND(INTRO!$E$37=\"Non-endemic\",INTRO!$E$41=\"Non-endemic\"),0,COUNTRY_INFO!O27)","v":0},{"$f":"IF($G27=1,DEC!I27,0)","v":0},"ALB",0,0,null,0,0,0,null,0,null,0,0,null,0,0,null,0,0]
[{"$f":"IF(AND(INTRO!$E$37=\"Non-endemic\",INTRO!$E$41=\"Non-endemic\"),\" \",IF(COUNTRY_INFO!A28=0,\" \",COUNTRY_INFO!A28))","v":"Botswana"},{"$f":"IF(AND(INTRO!$E$37=\"Non-endemic\",INTRO!$E$41=\"Non-endemic\"),\" \",IF(COUNTRY_INFO!B28=0,\" \",COUNTRY_INFO!B28))","v":" "},{"$f":"IF(AND(INTRO!$E$37=\"Non-endemic\",INTRO!$E$41=\"Non-endemic\"),\" \",IF(COUNTRY_INFO!C28=0,\" \",COUNTRY_INFO!C28))","v":"OKAVANGO"},{"$f":"IF(AND(INTRO!$E$37=\"Non-endemic\",INTRO!$E$41=\"Non-endemic\"),0,IF(AND(OR(COUNTRY_INFO!$H28=0,COUNTRY_INFO!$H28=4,COUNTRY_INFO!$H28=99),OR(COUNTRY_INFO!$I28=0,COUNTRY_INFO!$I28=4)),0,COUNTRY_INFO!$E28))","v":6407},{"$f":"IF(AND(INTRO!$E$37=\"Non-endemic\",INTRO!$E$41=\"Non-endemic\"),0,IF(AND(OR(COUNTRY_INFO!$H28=0,COUNTRY_INFO!$H28=4,COUNTRY_INFO!$H28=99),OR(COUNTRY_INFO!$I28=0,COUNTRY_INFO!$I28=4)),0,COUNTRY_INFO!$F28))","v":5766},12173,{"$f":"IF(AND(INTRO!$E$37=\"Non-endemic\",INTRO!$E$41=\"Non-endemic\"),0,COUNTRY_INFO!N28)","v":0},{"$f":"IF(AND(INTRO!$E$37=\"Non-endemic\",INTRO!$E$41=\"Non-endemic\"),0,COUNTRY_INFO!O28)","v":1},{"$f":"IF($G28=1,DEC!I28,0)","v":0},"ALB",6407,5766,null,12173,0,0,null,0,null,0,0,null,5766,29,null,0,0]
[{"$f":"IF(AND(INTRO!$E$37=\"Non-endemic\",INTRO!$E$41=\"Non-endemic\"),\" \",IF(COUNTRY_INFO!A29=0,\" \",COUNTRY_INFO!A29))","v":"Botswana"},{"$f":"IF(AND(INTRO!$E$37=\"Non-endemic\",INTRO!$E$41=\"Non-endemic\"),\" \",IF(COUNTRY_INFO!B29=0,\" \",COUNTRY_INFO!B29))","v":" "},{"$f":"IF(AND(INTRO!$E$37=\"Non-endemic\",INTRO!$E$41=\"Non-endemic\"),\" \",IF(COUNTRY_INFO!C29=0,\" \",COUNTRY_INFO!C29))","v":"SELIBE PHIKWE"},{"$f":"IF(AND(INTRO!$E$37=\"Non-endemic\",INTRO!$E$41=\"Non-endemic\"),0,IF(AND(OR(COUNTRY_INFO!$H29=0,COUNTRY_INFO!$H29=4,COUNTRY_INFO!$H29=99),OR(COUNTRY_INFO!$I29=0,COUNTRY_INFO!$I29=4)),0,COUNTRY_INFO!$E29))","v":19461},{"$f":"IF(AND(INTRO!$E$37=\"Non-endemic\",INTRO!$E$41=\"Non-endemic\"),0,IF(AND(OR(COUNTRY_INFO!$H29=0,COUNTRY_INFO!$H29=4,COUNTRY_INFO!$H29=99),OR(COUNTRY_INFO!$I29=0,COUNTRY_INFO!$I29=4)),0,COUNTRY_INFO!$F29))","v":17515},36976,{"$f":"IF(AND(INTRO!$E$37=\"Non-endemic\",INTRO!$E$41=\"Non-endemic\"),0,COUNTRY_INFO!N29)","v":0},{"$f":"IF(AND(INTRO!$E$37=\"Non-endemic\",INTRO!$E$41=\"Non-endemic\"),0,COUNTRY_INFO!O29)","v":1},{"$f":"IF($G29=1,DEC!I29,0)","v":0},"ALB",19461,17515,null,36976,0,0,null,0,null,0,0,null,17515,88,null,0,0]
[{"$f":"IF(AND(INTRO!$E$37=\"Non-endemic\",INTRO!$E$41=\"Non-endemic\"),\" \",IF(COUNTRY_INFO!A30=0,\" \",COUNTRY_INFO!A30))","v":"Botswana"},{"$f":"IF(AND(INTRO!$E$37=\"Non-endemic\",INTRO!$E$41=\"Non-endemic\"),\" \",IF(COUNTRY_INFO!B30=0,\" \",COUNTRY_INFO!B30))","v":" "},{"$f":"IF(AND(INTRO!$E$37=\"Non-endemic\",INTRO!$E$41=\"Non-endemic\"),\" \",IF(COUNTRY_INFO!C30=0,\" \",COUNTRY_INFO!C30))","v":"SEROWE / PALAPYE"},{"$f":"IF(AND(INTRO!$E$37=\"Non-endemic\",INTRO!$E$41=\"Non-endemic\"),0,IF(AND(OR(COUNTRY_INFO!$H30=0,COUNTRY_INFO!$H30=4,COUNTRY_INFO!$H30=99),OR(COUNTRY_INFO!$I30=0,COUNTRY_INFO!$I30=4)),0,COUNTRY_INFO!$E30))","v":5328},{"$f":"IF(AND(INTRO!$E$37=\"Non-endemic\",INTRO!$E$41=\"Non-endemic\"),0,IF(AND(OR(COUNTRY_INFO!$H30=0,COUNTRY_INFO!$H30=4,COUNTRY_INFO!$H30=99),OR(COUNTRY_INFO!$I30=0,COUNTRY_INFO!$I30=4)),0,COUNTRY_INFO!$F30))","v":4795},10123,{"$f":"IF(AND(INTRO!$E$37=\"Non-endemic\",INTRO!$E$41=\"Non-endemic\"),0,COUNTRY_INFO!N30)","v":0},{"$f":"IF(AND(INTRO!$E$37=\"Non-endemic\",INTRO!$E$41=\"Non-endemic\"),0,COUNTRY_INFO!O30)","v":0},{"$f":"IF($G30=1,DEC!I30,0)","v":0},"ALB",0,0,null,0,0,0,null,0,null,0,0,null,0,0,null,0,0]
[{"$f":"IF(AND(INTRO!$E$37=\"Non-endemic\",INTRO!$E$41=\"Non-endemic\"),\" \",IF(COUNTRY_INFO!A31=0,\" \",COUNTRY_INFO!A31))","v":"Botswana"},{"$f":"IF(AND(INTRO!$E$37=\"Non-endemic\",INTRO!$E$41=\"Non-endemic\"),\" \",IF(COUNTRY_INFO!B31=0,\" \",COUNTRY_INFO!B31))","v":" "},{"$f":"IF(AND(INTRO!$E$37=\"Non-endemic\",INTRO!$E$41=\"Non-endemic\"),\" \",IF(COUNTRY_INFO!C31=0,\" \",COUNTRY_INFO!C31))","v":"SOUTH EAST"},{"$f":"IF(AND(INTRO!$E$37=\"Non-endemic\",INTRO!$E$41=\"Non-endemic\"),0,IF(AND(OR(COUNTRY_INFO!$H31=0,COUNTRY_INFO!$H31=4,COUNTRY_INFO!$H31=99),OR(COUNTRY_INFO!$I31=0,COUNTRY_INFO!$I31=4)),0,COUNTRY_INFO!$E31))","v":5250},{"$f":"IF(AND(INTRO!$E$37=\"Non-endemic\",INTRO!$E$41=\"Non-endemic\"),0,IF(AND(OR(COUNTRY_INFO!$H31=0,COUNTRY_INFO!$H31=4,COUNTRY_INFO!$H31=99),OR(COUNTRY_INFO!$I31=0,COUNTRY_INFO!$I31=4)),0,COUNTRY_INFO!$F31))","v":4725},9975,{"$f":"IF(AND(INTRO!$E$37=\"Non-endemic\",INTRO!$E$41=\"Non-endemic\"),0,COUNTRY_INFO!N31)","v":0},{"$f":"IF(AND(INTRO!$E$37=\"Non-endemic\",INTRO!$E$41=\"Non-endemic\"),0,COUNTRY_INFO!O31)","v":0},{"$f":"IF($G31=1,DEC!I31,0)","v":0},"ALB",0,0,null,0,0,0,null,0,null,0,0,null,0,0,null,0,0]
[{"$f":"IF(AND(INTRO!$E$37=\"Non-endemic\",INTRO!$E$41=\"Non-endemic\"),\" \",IF(COUNTRY_INFO!A32=0,\" \",COUNTRY_INFO!A32))","v":"Botswana"},{"$f":"IF(AND(INTRO!$E$37=\"Non-endemic\",INTRO!$E$41=\"Non-endemic\"),\" \",IF(COUNTRY_INFO!B32=0,\" \",COUNTRY_INFO!B32))","v":" "},{"$f":"IF(AND(INTRO!$E$37=\"Non-endemic\",INTRO!$E$41=\"Non-endemic\"),\" \",IF(COUNTRY_INFO!C32=0,\" \",COUNTRY_INFO!C32))","v":"TUTUME"},{"$f":"IF(AND(INTRO!$E$37=\"Non-endemic\",INTRO!$E$41=\"Non-endemic\"),0,IF(AND(OR(COUNTRY_INFO!$H32=0,COUNTRY_INFO!$H32=4,COUNTRY_INFO!$H32=99),OR(COUNTRY_INFO!$I32=0,COUNTRY_INFO!$I32=4)),0,COUNTRY_INFO!$E32))","v":12756},{"$f":"IF(AND(INTRO!$E$37=\"Non-endemic\",INTRO!$E$41=\"Non-endemic\"),0,IF(AND(OR(COUNTRY_INFO!$H32=0,COUNTRY_INFO!$H32=4,COUNTRY_INFO!$H32=99),OR(COUNTRY_INFO!$I32=0,COUNTRY_INFO!$I32=4)),0,COUNTRY_INFO!$F32))","v":11481},24237,{"$f":"IF(AND(INTRO!$E$37=\"Non-endemic\",INTRO!$E$41=\"Non-endemic\"),0,COUNTRY_INFO!N32)","v":0},{"$f":"IF(AND(INTRO!$E$37=\"Non-endemic\",INTRO!$E$41=\"Non-endemic\"),0,COUNTRY_INFO!O32)","v":0},{"$f":"IF($G32=1,DEC!I32,0)","v":0},"ALB",0,0,null,0,0,0,null,0,null,0,0,null,0,0,null,0,0]

{"sheet":"PZQ","index":4,"n_rows":32,"n_cols":18,"rows_kept":32,"cut":false,"hidden":false,"merged":[[6,4,7,4],[6,5,7,5],[6,7,7,7],[6,6,7,6],[6,0,7,0],[6,1,7,1],[6,2,7,2],[6,3,7,3],[3,0,3,2],[5,0,5,2],[5,3,5,5],[5,8,5,11],[5,6,5,7],[5,12,5,17],[6,8,7,8],[6,9,7,9],[6,10,7,10],[6,17,7,17],[6,13,7,13],[6,14,7,14],[6,15,7,15],[6,11,7,11],[6,16,7,16],[6,12,7,12]]}
["Praziquantel (PZQ)"]
["Administrative structure, eligible population by age group, treatment plan and information about tablets"]
[]
["TOTAL",null,null,{"$f":"SUM(D$9:D$1000)","v":0},{"$f":"SUM(E$9:E$1000)","v":0},{"$f":"SUM(F$9:F$1000)","v":0},null,null,{"$f":"SUM(I$9:I$1000)","v":0},0,0,0,0,0,0,0,0,0]
[]
["Country administrative structure",null,null,"Population requiring treatment with PZQ",null,null,"Treatment plan",null,"Target population",null,null,null,"Praziquantel (PZQ)"]
["Country","Province/State","District","SAC","Adults","Total","SCH","All SAC targeted?","SAC","SAC\nat lower level","Adults","Total","SAC","Adults","Total required\nfor SAC","Remaining in stock","Tablets to be procured","Bottle (600 mg)\n1000 tablets"]
[]
[{"$f":"IF(INTRO!$E$43=\"Non-endemic\",\" \", IF(COUNTRY_INFO!A9=0,\" \",COUNTRY_INFO!A9))","v":"Botswana"},{"$f":"IF(INTRO!$E$43=\"Non-endemic\",\" \", IF(COUNTRY_INFO!B9=0,\" \",COUNTRY_INFO!B9))","v":" "},{"$f":"IF(INTRO!$E$43=\"Non-endemic\",\" \", IF(COUNTRY_INFO!C9=0,\" \",COUNTRY_INFO!C9))","v":"BOBIRWA"},{"$f":"IF(INTRO!$E$43=\"Non-endemic\", 0, IF(COUNTRY_INFO!$J9>0, IF(COUNTRY_INFO!$J9=4, 0, IF(COUNTRY_INFO!$J9=1, COUNTRY_INFO!$F9*0.33, IF(COUNTRY_INFO!$J9=2, COUNTRY_INFO!$F9*0.5, COUNTRY_INFO!$F9))), 0))","v":0},{"$f":"IF(INTRO!$E$43=\"Non-endemic\", 0, IF(COUNTRY_INFO!$J9>0, IF(COUNTRY_INFO!$J9=4, 0, IF(COUNTRY_INFO!$J9=1, 0, IF(COUNTRY_INFO!$J9=2, COUNTRY_INFO!$G9*0.2, COUNTRY_INFO!$G9))), 0))","v":0},{"$f":"SUM(D9:E9)","v":0},{"$f":"IF(INTRO!$E$43=\"Non-endemic\", \"Not required\", COUNTRY_INFO!P9)","v":0},null,{"$f":"IF($D9=0,0,IF(AND($G9>0,$H9<>\"Yes\"),D9,IF(AND($G9>0,$H9=\"Yes\"),COUNTRY_INFO!$F9,0)))","v":0},null,{"$f":"IF($G9>0,E9, 0)","v":0},{"$f":"IF($J9=0,SUM(I9,K9),SUM(J9,K9))","v":0},{"$f":"IF($J9=0,$I9*2.5,$J9*2.5)","v":0},{"$f":"$K9*3","v":0},{"$f":"M9","v":0},null,{"$f":"IF($O9>$P9,O9-P9,0)","v":0},{"$f":"ROUNDUP($O9/1000,0)","v":0}]
[{"$f":"IF(INTRO!$E$43=\"Non-endemic\",\" \", IF(COUNTRY_INFO!A10=0,\" \",COUNTRY_INFO!A10))","v":"Botswana"},{"$f":"IF(INTRO!$E$43=\"Non-endemic\",\" \", IF(COUNTRY_INFO!B10=0,\" \",COUNTRY_INFO!B10))","v":" "},{"$f":"IF(INTRO!$E$43=\"Non-endemic\",\" \", IF(COUNTRY_INFO!C10=0,\" \",COUNTRY_INFO!C10))","v":"BOTETI"},{"$f":"IF(INTRO!$E$43=\"Non-endemic\", 0, IF(COUNTRY_INFO!$J10>0, IF(COUNTRY_INFO!$J10=4, 0, IF(COUNTRY_INFO!$J10=1, COUNTRY_INFO!$F10*0.33, IF(COUNTRY_INFO!$J10=2, COUNTRY_INFO!$F10*0.5, COUNTRY_INFO!$F10))), 0))","v":0},{"$f":"IF(INTRO!$E$43=\"Non-endemic\", 0, IF(COUNTRY_INFO!$J10>0, IF(COUNTRY_INFO!$J10=4, 0, IF(COUNTRY_INFO!$J10=1, 0, IF(COUNTRY_INFO!$J10=2, COUNTRY_INFO!$G10*0.2, COUNTRY_INFO!$G10))), 0))","v":0},0,{"$f":"IF(INTRO!$E$43=\"Non-endemic\", \"Not required\", COUNTRY_INFO!P10)","v":0},null,{"$f":"IF($D10=0,0,IF(AND($G10>0,$H10<>\"Yes\"),D10,IF(AND($G10>0,$H10=\"Yes\"),COUNTRY_INFO!$F10,0)))","v":0},null,0,0,0,0,0,null,0,0]
[{"$f":"IF(INTRO!$E$43=\"Non-endemic\",\" \", IF(COUNTRY_INFO!A11=0,\" \",COUNTRY_INFO!A11))","v":"Botswana"},{"$f":"IF(INTRO!$E$43=\"Non-endemic\",\" \", IF(COUNTRY_INFO!B11=0,\" \",COUNTRY_INFO!B11))","v":" "},{"$f":"IF(INTRO!$E$43=\"Non-endemic\",\" \", IF(COUNTRY_INFO!C11=0,\" \",COUNTRY_INFO!C11))","v":"CHOBE"},{"$f":"IF(INTRO!$E$43=\"Non-endemic\", 0, IF(COUNTRY_INFO!$J11>0, IF(COUNTRY_INFO!$J11=4, 0, IF(COUNTRY_INFO!$J11=1, COUNTRY_INFO!$F11*0.33, IF(COUNTRY_INFO!$J11=2, COUNTRY_INFO!$F11*0.5, COUNTRY_INFO!$F11))), 0))","v":0},{"$f":"IF(INTRO!$E$43=\"Non-endemic\", 0, IF(COUNTRY_INFO!$J11>0, IF(COUNTRY_INFO!$J11=4, 0, IF(COUNTRY_INFO!$J11=1, 0, IF(COUNTRY_INFO!$J11=2, COUNTRY_INFO!$G11*0.2, COUNTRY_INFO!$G11))), 0))","v":0},0,{"$f":"IF(INTRO!$E$43=\"Non-endemic\", \"Not required\", COUNTRY_INFO!P11)","v":0},null,{"$f":"IF($D11=0,0,IF(AND($G11>0,$H11<>\"Yes\"),D11,IF(AND($G11>0,$H11=\"Yes\"),COUNTRY_INFO!$F11,0)))","v":0},null,0,0,0,0,0,null,0,0]
[{"$f":"IF(INTRO!$E$43=\"Non-endemic\",\" \", IF(COUNTRY_INFO!A12=0,\" \",COUNTRY_INFO!A12))","v":"Botswana"},{"$f":"IF(INTRO!$E$43=\"Non-endemic\",\" \", IF(COUNTRY_INFO!B12=0,\" \",COUNTRY_INFO!B12))","v":" "},{"$f":"IF(INTRO!$E$43=\"Non-endemic\",\" \", IF(COUNTRY_INFO!C12=0,\" \",COUNTRY_INFO!C12))","v":"FRANCISTOWN"},{"$f":"IF(INTRO!$E$43=\"Non-endemic\", 0, IF(COUNTRY_INFO!$J12>0, IF(COUNTRY_INFO!$J12=4, 0, IF(COUNTRY_INFO!$J12=1, COUNTRY_INFO!$F12*0.33, IF(COUNTRY_INFO!$J12=2, COUNTRY_INFO!$F12*0.5, COUNTRY_INFO!$F12))), 0))","v":0},{"$f":"IF(INTRO!$E$43=\"Non-endemic\", 0, IF(COUNTRY_INFO!$J12>0, IF(COUNTRY_INFO!$J12=4, 0, IF(COUNTRY_INFO!$J12=1, 0, IF(COUNTRY_INFO!$J12=2, COUNTRY_INFO!$G12*0.2, COUNTRY_INFO!$G12))), 0))","v":0},0,{"$f":"IF(INTRO!$E$43=\"Non-endemic\", \"Not required\", COUNTRY_INFO!P12)","v":0},null,{"$f":"IF($D12=0,0,IF(AND($G12>0,$H12<>\"Yes\"),D12,IF(AND($G12>0,$H12=\"Yes\"),COUNTRY_INFO!$F12,0)))","v":0},null,0,0,0,0,0,null,0,0]
[{"$f":"IF(INTRO!$E$43=\"Non-endemic\",\" \", IF(COUNTRY_INFO!A13=0,\" \",COUNTRY_INFO!A13))","v":"Botswana"},{"$f":"IF(INTRO!$E$43=\"Non-endemic\",\" \", IF(COUNTRY_INFO!B13=0,\" \",COUNTRY_INFO!B13))","v":" "},{"$f":"IF(INTRO!$E$43=\"Non-endemic\",\" \", IF(COUNTRY_INFO!C13=0,\" \",COUNTRY_INFO!C13))","v":"GABORONE"},{"$f":"IF(INTRO!$E$43=\"Non-endemic\", 0, IF(COUNTRY_INFO!$J13>0, IF(COUNTRY_INFO!$J13=4, 0, IF(COUNTRY_INFO!$J13=1, COUNTRY_INFO!$F13*0.33, IF(COUNTRY_INFO!$J13=2, COUNTRY_INFO!$F13*0.5, COUNTRY_INFO!$F13))), 0))","v":0},{"$f":"IF(INTRO!$E$43=\"Non-endemic\", 0, IF(COUNTRY_INFO!$J13>0, IF(COUNTRY_INFO!$J13=4, 0, IF(COUNTRY_INFO!$J13=1, 0, IF(COUNTRY_INFO!$J13=2, COUNTRY_INFO!$G13*0.2, COUNTRY_INFO!$G13))), 0))","v":0},0,{"$f":"IF(INTRO!$E$43=\"Non-endemic\", \"Not required\", COUNTRY_INFO!P13)","v":0},null,{"$f":"IF($D13=0,0,IF(AND($G13>0,$H13<>\"Yes\"),D13,IF(AND($G13>0,$H13=\"Yes\"),COUNTRY_INFO!$F13,0)))","v":0},null,0,0,0,0,0,null,0,0]
[{"$f":"IF(INTRO!$E$43=\"Non-endemic\",\" \", IF(COUNTRY_INFO!A14=0,\" \",COUNTRY_INFO!A14))","v":"Botswana"},{"$f":"IF(INTRO!$E$43=\"Non-endemic\",\" \", IF(COUNTRY_INFO!B14=0,\" \",COUNTRY_INFO!B14))","v":" "},{"$f":"IF(INTRO!$E$43=\"Non-endemic\",\" \", IF(COUNTRY_INFO!C14=0,\" \",COUNTRY_INFO!C14))","v":"GANTSI/CHARLESHILL"},{"$f":"IF(INTRO!$E$43=\"Non-endemic\", 0, IF(COUNTRY_INFO!$J14>0, IF(COUNTRY_INFO!$J14=4, 0, IF(COUNTRY_INFO!$J14=1, COUNTRY_INFO!$F14*0.33, IF(COUNTRY_INFO!$J14=2, COUNTRY_INFO!$F14*0.5, COUNTRY_INFO!$F14))), 0))","v":0},{"$f":"IF(INTRO!$E$43=\"Non-endemic\", 0, IF(COUNTRY_INFO!$J14>0, IF(COUNTRY_INFO!$J14=4, 0, IF(COUNTRY_INFO!$J14=1, 0, IF(COUNTRY_INFO!$J14=2, COUNTRY_INFO!$G14*0.2, COUNTRY_INFO!$G14))), 0))","v":0},0,{"$f":"IF(INTRO!$E$43=\"Non-endemic\", \"Not required\", COUNTRY_INFO!P14)","v":0},null,{"$f":"IF($D14=0,0,IF(AND($G14>0,$H14<>\"Yes\"),D14,IF(AND($G14>0,$H14=\"Yes\"),COUNTRY_INFO!$F14,0)))","v":0},null,0,0,0,0,0,null,0,0]
[{"$f":"IF(INTRO!$E$43=\"Non-endemic\",\" \", IF(COUNTRY_INFO!A15=0,\" \",COUNTRY_INFO!A15))","v":"Botswana"},{"$f":"IF(INTRO!$E$43=\"Non-endemic\",\" \", IF(COUNTRY_INFO!B15=0,\" \",COUNTRY_INFO!B15))","v":" "},{"$f":"IF(INTRO!$E$43=\"Non-endemic\",\" \", IF(COUNTRY_INFO!C15=0,\" \",COUNTRY_INFO!C15))","v":"GOODHOPE"},{"$f":"IF(INTRO!$E$43=\"Non-endemic\", 0, IF(COUNTRY_INFO!$J15>0, IF(COUNTRY_INFO!$J15=4, 0, IF(COUNTRY_INFO!$J15=1, COUNTRY_INFO!$F15*0.33, IF(COUNTRY_INFO!$J15=2, COUNTRY_INFO!$F15*0.5, COUNTRY_INFO!$F15))), 0))","v":0},{"$f":"IF(INTRO!$E$43=\"Non-endemic\", 0, IF(COUNTRY_INFO!$J15>0, IF(COUNTRY_INFO!$J15=4, 0, IF(COUNTRY_INFO!$J15=1, 0, IF(COUNTRY_INFO!$J15=2, COUNTRY_INFO!$G15*0.2, COUNTRY_INFO!$G15))), 0))","v":0},0,{"$f":"IF(INTRO!$E$43=\"Non-endemic\", \"Not required\", COUNTRY_INFO!P15)","v":0},null,{"$f":"IF($D15=0,0,IF(AND($G15>0,$H15<>\"Yes\"),D15,IF(AND($G15>0,$H15=\"Yes\"),COUNTRY_INFO!$F15,0)))","v":0},null,0,0,0,0,0,null,0,0]
[{"$f":"IF(INTRO!$E$43=\"Non-endemic\",\" \", IF(COUNTRY_INFO!A16=0,\" \",COUNTRY_INFO!A16))","v":"Botswana"},{"$f":"IF(INTRO!$E$43=\"Non-endemic\",\" \", IF(COUNTRY_INFO!B16=0,\" \",COUNTRY_INFO!B16))","v":" "},{"$f":"IF(INTRO!$E$43=\"Non-endemic\",\" \", IF(COUNTRY_INFO!C16=0,\" \",COUNTRY_INFO!C16))","v":"JWANENG"},{"$f":"IF(INTRO!$E$43=\"Non-endemic\", 0, IF(COUNTRY_INFO!$J16>0, IF(COUNTRY_INFO!$J16=4, 0, IF(COUNTRY_INFO!$J16=1, COUNTRY_INFO!$F16*0.33, IF(COUNTRY_INFO!$J16=2, COUNTRY_INFO!$F16*0.5, COUNTRY_INFO!$F16))), 0))","v":0},{"$f":"IF(INTRO!$E$43=\"Non-endemic\", 0, IF(COUNTRY_INFO!$J16>0, IF(COUNTRY_INFO!$J16=4, 0, IF(COUNTRY_INFO!$J16=1, 0, IF(COUNTRY_INFO!$J16=2, COUNTRY_INFO!$G16*0.2, COUNTRY_INFO!$G16))), 0))","v":0},0,{"$f":"IF(INTRO!$E$43=\"Non-endemic\", \"Not required\", COUNTRY_INFO!P16)","v":0},null,{"$f":"IF($D16=0,0,IF(AND($G16>0,$H16<>\"Yes\"),D16,IF(AND($G16>0,$H16=\"Yes\"),COUNTRY_INFO!$F16,0)))","v":0},null,0,0,0,0,0,null,0,0]
[{"$f":"IF(INTRO!$E$43=\"Non-endemic\",\" \", IF(COUNTRY_INFO!A17=0,\" \",COUNTRY_INFO!A17))","v":"Botswana"},{"$f":"IF(INTRO!$E$43=\"Non-endemic\",\" \", IF(COUNTRY_INFO!B17=0,\" \",COUNTRY_INFO!B17))","v":" "},{"$f":"IF(INTRO!$E$43=\"Non-endemic\",\" \", IF(COUNTRY_INFO!C17=0,\" \",COUNTRY_INFO!C17))","v":"KANYE/MOSHOPA"},{"$f":"IF(INTRO!$E$43=\"Non-endemic\", 0, IF(COUNTRY_INFO!$J17>0, IF(COUNTRY_INFO!$J17=4, 0, IF(COUNTRY_INFO!$J17=1, COUNTRY_INFO!$F17*0.33, IF(COUNTRY_INFO!$J17=2, COUNTRY_INFO!$F17*0.5, COUNTRY_INFO!$F17))), 0))","v":0},{"$f":"IF(INTRO!$E$43=\"Non-endemic\", 0, IF(COUNTRY_INFO!$J17>0, IF(COUNTRY_INFO!$J17=4, 0, IF(COUNTRY_INFO!$J17=1, 0, IF(COUNTRY_INFO!$J17=2, COUNTRY_INFO!$G17*0.2, COUNTRY_INFO!$G17))), 0))","v":0},0,{"$f":"IF(INTRO!$E$43=\"Non-endemic\", \"Not required\", COUNTRY_INFO!P17)","v":0},null,{"$f":"IF($D17=0,0,IF(AND($G17>0,$H17<>\"Yes\"),D17,IF(AND($G17>0,$H17=\"Yes\"),COUNTRY_INFO!$F17,0)))","v":0},null,0,0,0,0,0,null,0,0]
[{"$f":"IF(INTRO!$E$43=\"Non-endemic\",\" \", IF(COUNTRY_INFO!A18=0,\" \",COUNTRY_INFO!A18))","v":"Botswana"},{"$f":"IF(INTRO!$E$43=\"Non-endemic\",\" \", IF(COUNTRY_INFO!B18=0,\" \",COUNTRY_INFO!B18))","v":" "},{"$f":"IF(INTRO!$E$43=\"Non-endemic\",\" \", IF(COUNTRY_INFO!C18=0,\" \",COUNTRY_INFO!C18))","v":"KGALAGADI NORTH"},{"$f":"IF(INTRO!$E$43=\"Non-endemic\", 0, IF(COUNTRY_INFO!$J18>0, IF(COUNTRY_INFO!$J18=4, 0, IF(COUNTRY_INFO!$J18=1, COUNTRY_INFO!$F18*0.33, IF(COUNTRY_INFO!$J18=2, COUNTRY_INFO!$F18*0.5, COUNTRY_INFO!$F18))), 0))","v":0},{"$f":"IF(INTRO!$E$43=\"Non-endemic\", 0, IF(COUNTRY_INFO!$J18>0, IF(COUNTRY_INFO!$J18=4, 0, IF(COUNTRY_INFO!$J18=1, 0, IF(COUNTRY_INFO!$J18=2, COUNTRY_INFO!$G18*0.2, COUNTRY_INFO!$G18))), 0))","v":0},0,{"$f":"IF(INTRO!$E$43=\"Non-endemic\", \"Not required\", COUNTRY_INFO!P18)","v":0},null,{"$f":"IF($D18=0,0,IF(AND($G18>0,$H18<>\"Yes\"),D18,IF(AND($G18>0,$H18=\"Yes\"),COUNTRY_INFO!$F18,0)))","v":0},null,0,0,0,0,0,null,0,0]
[{"$f":"IF(INTRO!$E$43=\"Non-endemic\",\" \", IF(COUNTRY_INFO!A19=0,\" \",COUNTRY_INFO!A19))","v":"Botswana"},{"$f":"IF(INTRO!$E$43=\"Non-endemic\",\" \", IF(COUNTRY_INFO!B19=0,\" \",COUNTRY_INFO!B19))","v":" "},{"$f":"IF(INTRO!$E$43=\"Non-endemic\",\" \", IF(COUNTRY_INFO!C19=0,\" \",COUNTRY_INFO!C19))","v":"KGALAGADI SOUTH"},{"$f":"IF(INTRO!$E$43=\"Non-endemic\", 0, IF(COUNTRY_INFO!$J19>0, IF(COUNTRY_INFO!$J19=4, 0, IF(COUNTRY_INFO!$J19=1, COUNTRY_INFO!$F19*0.33, IF(COUNTRY_INFO!$J19=2, COUNTRY_INFO!$F19*0.5, COUNTRY_INFO!$F19))), 0))","v":0},{"$f":"IF(INTRO!$E$43=\"Non-endemic\", 0, IF(COUNTRY_INFO!$J19>0, IF(COUNTRY_INFO!$J19=4, 0, IF(COUNTRY_INFO!$J19=1, 0, IF(COUNTRY_INFO!$J19=2, COUNTRY_INFO!$G19*0.2, COUNTRY_INFO!$G19))), 0))","v":0},0,{"$f":"IF(INTRO!$E$43=\"Non-endemic\", \"Not required\", COUNTRY_INFO!P19)","v":0},null,{"$f":"IF($D19=0,0,IF(AND($G19>0,$H19<>\"Yes\"),D19,IF(AND($G19>0,$H19=\"Yes\"),COUNTRY_INFO!$F19,0)))","v":0},null,0,0,0,0,0,null,0,0]
[{"$f":"IF(INTRO!$E$43=\"Non-endemic\",\" \", IF(COUNTRY_INFO!A20=0,\" \",COUNTRY_INFO!A20))","v":"Botswana"},{"$f":"IF(INTRO!$E$43=\"Non-endemic\",\" \", IF(COUNTRY_INFO!B20=0,\" \",COUNTRY_INFO!B20))","v":" "},{"$f":"IF(INTRO!$E$43=\"Non-endemic\",\" \", IF(COUNTRY_INFO!C20=0,\" \",COUNTRY_INFO!C20))","v":"KGATLENG"},{"$f":"IF(INTRO!$E$43=\"Non-endemic\", 0, IF(COUNTRY_INFO!$J20>0, IF(COUNTRY_INFO!$J20=4, 0, IF(COUNTRY_INFO!$J20=1, COUNTRY_INFO!$F20*0.33, IF(COUNTRY_INFO!$J20=2, COUNTRY_INFO!$F20*0.5, COUNTRY_INFO!$F20))), 0))","v":0},{"$f":"IF(INTRO!$E$43=\"Non-endemic\", 0, IF(COUNTRY_INFO!$J20>0, IF(COUNTRY_INFO!$J20=4, 0, IF(COUNTRY_INFO!$J20=1, 0, IF(COUNTRY_INFO!$J20=2, COUNTRY_INFO!$G20*0.2, COUNTRY_INFO!$G20))), 0))","v":0},0,{"$f":"IF(INTRO!$E$43=\"Non-endemic\", \"Not required\", COUNTRY_INFO!P20)","v":0},null,{"$f":"IF($D20=0,0,IF(AND($G20>0,$H20<>\"Yes\"),D20,IF(AND($G20>0,$H20=\"Yes\"),COUNTRY_INFO!$F20,0)))","v":0},null,0,0,0,0,0,null,0,0]
[{"$f":"IF(INTRO!$E$43=\"Non-endemic\",\" \", IF(COUNTRY_INFO!A21=0,\" \",COUNTRY_INFO!A21))","v":"Botswana"},{"$f":"IF(INTRO!$E$43=\"Non-endemic\",\" \", IF(COUNTRY_INFO!B21=0,\" \",COUNTRY_INFO!B21))","v":" "},{"$f":"IF(INTRO!$E$43=\"Non-endemic\",\" \", IF(COUNTRY_INFO!C21=0,\" \",COUNTRY_INFO!C21))","v":"KWENENG EAST"},{"$f":"IF(INTRO!$E$43=\"Non-endemic\", 0, IF(COUNTRY_INFO!$J21>0, IF(COUNTRY_INFO!$J21=4, 0, IF(COUNTRY_INFO!$J21=1, COUNTRY_INFO!$F21*0.33, IF(COUNTRY_INFO!$J21=2, COUNTRY_INFO!$F21*0.5, COUNTRY_INFO!$F21))), 0))","v":0},{"$f":"IF(INTRO!$E$43=\"Non-endemic\", 0, IF(COUNTRY_INFO!$J21>0, IF(COUNTRY_INFO!$J21=4, 0, IF(COUNTRY_INFO!$J21=1, 0, IF(COUNTRY_INFO!$J21=2, COUNTRY_INFO!$G21*0.2, COUNTRY_INFO!$G21))), 0))","v":0},0,{"$f":"IF(INTRO!$E$43=\"Non-endemic\", \"Not required\", COUNTRY_INFO!P21)","v":0},null,{"$f":"IF($D21=0,0,IF(AND($G21>0,$H21<>\"Yes\"),D21,IF(AND($G21>0,$H21=\"Yes\"),COUNTRY_INFO!$F21,0)))","v":0},null,0,0,0,0,0,null,0,0]
[{"$f":"IF(INTRO!$E$43=\"Non-endemic\",\" \", IF(COUNTRY_INFO!A22=0,\" \",COUNTRY_INFO!A22))","v":"Botswana"},{"$f":"IF(INTRO!$E$43=\"Non-endemic\",\" \", IF(COUNTRY_INFO!B22=0,\" \",COUNTRY_INFO!B22))","v":" "},{"$f":"IF(INTRO!$E$43=\"Non-endemic\",\" \", IF(COUNTRY_INFO!C22=0,\" \",COUNTRY_INFO!C22))","v":"KWENENG WEST"},{"$f":"IF(INTRO!$E$43=\"Non-endemic\", 0, IF(COUNTRY_INFO!$J22>0, IF(COUNTRY_INFO!$J22=4, 0, IF(COUNTRY_INFO!$J22=1, COUNTRY_INFO!$F22*0.33, IF(COUNTRY_INFO!$J22=2, COUNTRY_INFO!$F22*0.5, COUNTRY_INFO!$F22))), 0))","v":0},{"$f":"IF(INTRO!$E$43=\"Non-endemic\", 0, IF(COUNTRY_INFO!$J22>0, IF(COUNTRY_INFO!$J22=4, 0, IF(COUNTRY_INFO!$J22=1, 0, IF(COUNTRY_INFO!$J22=2, COUNTRY_INFO!$G22*0.2, COUNTRY_INFO!$G22))), 0))","v":0},0,{"$f":"IF(INTRO!$E$43=\"Non-endemic\", \"Not required\", COUNTRY_INFO!P22)","v":0},null,{"$f":"IF($D22=0,0,IF(AND($G22>0,$H22<>\"Yes\"),D22,IF(AND($G22>0,$H22=\"Yes\"),COUNTRY_INFO!$F22,0)))","v":0},null,0,0,0,0,0,null,0,0]
[{"$f":"IF(INTRO!$E$43=\"Non-endemic\",\" \", IF(COUNTRY_INFO!A23=0,\" \",COUNTRY_INFO!A23))","v":"Botswana"},{"$f":"IF(INTRO!$E$43=\"Non-endemic\",\" \", IF(COUNTRY_INFO!B23=0,\" \",COUNTRY_INFO!B23))","v":" "},{"$f":"IF(INTRO!$E$43=\"Non-endemic\",\" \", IF(COUNTRY_INFO!C23=0,\" \",COUNTRY_INFO!C23))","v":"LOBATSE"},{"$f":"IF(INTRO!$E$43=\"Non-endemic\", 0, IF(COUNTRY_INFO!$J23>0, IF(COUNTRY_INFO!$J23=4, 0, IF(COUNTRY_INFO!$J23=1, COUNTRY_INFO!$F23*0.33, IF(COUNTRY_INFO!$J23=2, COUNTRY_INFO!$F23*0.5, COUNTRY_INFO!$F23))), 0))","v":0},{"$f":"IF(INTRO!$E$43=\"Non-endemic\", 0, IF(COUNTRY_INFO!$J23>0, IF(COUNTRY_INFO!$J23=4, 0, IF(COUNTRY_INFO!$J23=1, 0, IF(COUNTRY_INFO!$J23=2, COUNTRY_INFO!$G23*0.2, COUNTRY_INFO!$G23))), 0))","v":0},0,{"$f":"IF(INTRO!$E$43=\"Non-endemic\", \"Not required\", COUNTRY_INFO!P23)","v":0},null,{"$f":"IF($D23=0,0,IF(AND($G23>0,$H23<>\"Yes\"),D23,IF(AND($G23>0,$H23=\"Yes\"),COUNTRY_INFO!$F23,0)))","v":0},null,0,0,0,0,0,null,0,0]
[{"$f":"IF(INTRO!$E$43=\"Non-endemic\",\" \", IF(COUNTRY_INFO!A24=0,\" \",COUNTRY_INFO!A24))","v":"Botswana"},{"$f":"IF(INTRO!$E$43=\"Non-endemic\",\" \", IF(COUNTRY_INFO!B24=0,\" \",COUNTRY_INFO!B24))","v":" "},{"$f":"IF(INTRO!$E$43=\"Non-endemic\",\" \", IF(COUNTRY_INFO!C24=0,\" \",COUNTRY_INFO!C24))","v":"MABUTSANE"},{"$f":"IF(INTRO!$E$43=\"Non-endemic\", 0, IF(COUNTRY_INFO!$J24>0, IF(COUNTRY_INFO!$J24=4, 0, IF(COUNTRY_INFO!$J24=1, COUNTRY_INFO!$F24*0.33, IF(COUNTRY_INFO!$J24=2, COUNTRY_INFO!$F24*0.5, COUNTRY_INFO!$F24))), 0))","v":0},{"$f":"IF(INTRO!$E$43=\"Non-endemic\", 0, IF(COUNTRY_INFO!$J24>0, IF(COUNTRY_INFO!$J24=4, 0, IF(COUNTRY_INFO!$J24=1, 0, IF(COUNTRY_INFO!$J24=2, COUNTRY_INFO!$G24*0.2, COUNTRY_INFO!$G24))), 0))","v":0},0,{"$f":"IF(INTRO!$E$43=\"Non-endemic\", \"Not required\", COUNTRY_INFO!P24)","v":0},null,{"$f":"IF($D24=0,0,IF(AND($G24>0,$H24<>\"Yes\"),D24,IF(AND($G24>0,$H24=\"Yes\"),COUNTRY_INFO!$F24,0)))","v":0},null,0,0,0,0,0,null,0,0]
[{"$f":"IF(INTRO!$E$43=\"Non-endemic\",\" \", IF(COUNTRY_INFO!A25=0,\" \",COUNTRY_INFO!A25))","v":"Botswana"},{"$f":"IF(INTRO!$E$43=\"Non-endemic\",\" \", IF(COUNTRY_INFO!B25=0,\" \",COUNTRY_INFO!B25))","v":" "},{"$f":"IF(INTRO!$E$43=\"Non-endemic\",\" \", IF(COUNTRY_INFO!C25=0,\" \",COUNTRY_INFO!C25))","v":"MAHALAPYE"},{"$f":"IF(INTRO!$E$43=\"Non-endemic\", 0, IF(COUNTRY_INFO!$J25>0, IF(COUNTRY_INFO!$J25=4, 0, IF(COUNTRY_INFO!$J25=1, COUNTRY_INFO!$F25*0.33, IF(COUNTRY_INFO!$J25=2, COUNTRY_INFO!$F25*0.5, COUNTRY_INFO!$F25))), 0))","v":0},{"$f":"IF(INTRO!$E$43=\"Non-endemic\", 0, IF(COUNTRY_INFO!$J25>0, IF(COUNTRY_INFO!$J25=4, 0, IF(COUNTRY_INFO!$J25=1, 0, IF(COUNTRY_INFO!$J25=2, COUNTRY_INFO!$G25*0.2, COUNTRY_INFO!$G25))), 0))","v":0},0,{"$f":"IF(INTRO!$E$43=\"Non-endemic\", \"Not required\", COUNTRY_INFO!P25)","v":0},null,{"$f":"IF($D25=0,0,IF(AND($G25>0,$H25<>\"Yes\"),D25,IF(AND($G25>0,$H25=\"Yes\"),COUNTRY_INFO!$F25,0)))","v":0},null,0,0,0,0,0,null,0,0]
[{"$f":"IF(INTRO!$E$43=\"Non-endemic\",\" \", IF(COUNTRY_INFO!A26=0,\" \",COUNTRY_INFO!A26))","v":"Botswana"},{"$f":"IF(INTRO!$E$43=\"Non-endemic\",\" \", IF(COUNTRY_INFO!B26=0,\" \",COUNTRY_INFO!B26))","v":" "},{"$f":"IF(INTRO!$E$43=\"Non-endemic\",\" \", IF(COUNTRY_INFO!C26=0,\" \",COUNTRY_INFO!C26))","v":"NGAMILAND"},{"$f":"IF(INTRO!$E$43=\"Non-endemic\", 0, IF(COUNTRY_INFO!$J26>0, IF(COUNTRY_INFO!$J26=4, 0, IF(COUNTRY_INFO!$J26=1, COUNTRY_INFO!$F26*0.33, IF(COUNTRY_INFO!$J26=2, COUNTRY_INFO!$F26*0.5, COUNTRY_INFO!$F26))), 0))","v":0},{"$f":"IF(INTRO!$E$43=\"Non-endemic\", 0, IF(COUNTRY_INFO!$J26>0, IF(COUNTRY_INFO!$J26=4, 0, IF(COUNTRY_INFO!$J26=1, 0, IF(COUNTRY_INFO!$J26=2, COUNTRY_INFO!$G26*0.2, COUNTRY_INFO!$G26))), 0))","v":0},0,{"$f":"IF(INTRO!$E$43=\"Non-endemic\", \"Not required\", COUNTRY_INFO!P26)","v":0},null,{"$f":"IF($D26=0,0,IF(AND($G26>0,$H26<>\"Yes\"),D26,IF(AND($G26>0,$H26=\"Yes\"),COUNTRY_INFO!$F26,0)))","v":0},null,0,0,0,0,0,null,0,0]
[{"$f":"IF(INTRO!$E$43=\"Non-endemic\",\" \", IF(COUNTRY_INFO!A27=0,\" \",COUNTRY_INFO!A27))","v":"Botswana"},{"$f":"IF(INTRO!$E$43=\"Non-endemic\",\" \", IF(COUNTRY_INFO!B27=0,\" \",COUNTRY_INFO!B27))","v":" "},{"$f":"IF(INTRO!$E$43=\"Non-endemic\",\" \", IF(COUNTRY_INFO!C27=0,\" \",COUNTRY_INFO!C27))","v":"NORTH EAST"},{"$f":"IF(INTRO!$E$43=\"Non-endemic\", 0, IF(COUNTRY_INFO!$J27>0, IF(COUNTRY_INFO!$J27=4, 0, IF(COUNTRY_INFO!$J27=1, COUNTRY_INFO!$F27*0.33, IF(COUNTRY_INFO!$J27=2, COUNTRY_INFO!$F27*0.5, COUNTRY_INFO!$F27))), 0))","v":0},{"$f":"IF(INTRO!$E$43=\"Non-endemic\", 0, IF(COUNTRY_INFO!$J27>0, IF(COUNTRY_INFO!$J27=4, 0, IF(COUNTRY_INFO!$J27=1, 0, IF(COUNTRY_INFO!$J27=2, COUNTRY_INFO!$G27*0.2, COUNTRY_INFO!$G27))), 0))","v":0},0,{"$f":"IF(INTRO!$E$43=\"Non-endemic\", \"Not required\", COUNTRY_INFO!P27)","v":0},null,{"$f":"IF($D27=0,0,IF(AND($G27>0,$H27<>\"Yes\"),D27,IF(AND($G27>0,$H27=\"Yes\"),COUNTRY_INFO!$F27,0)))","v":0},null,0,0,0,0,0,null,0,0]
[{"$f":"IF(INTRO!$E$43=\"Non-endemic\",\" \", IF(COUNTRY_INFO!A28=0,\" \",COUNTRY_INFO!A28))","v":"Botswana"},{"$f":"IF(INTRO!$E$43=\"Non-endemic\",\" \", IF(COUNTRY_INFO!B28=0,\" \",COUNTRY_INFO!B28))","v":" "},{"$f":"IF(INTRO!$E$43=\"Non-endemic\",\" \", IF(COUNTRY_INFO!C28=0,\" \",COUNTRY_INFO!C28))","v":"OKAVANGO"},{"$f":"IF(INTRO!$E$43=\"Non-endemic\", 0, IF(COUNTRY_INFO!$J28>0, IF(COUNTRY_INFO!$J28=4, 0, IF(COUNTRY_INFO!$J28=1, COUNTRY_INFO!$F28*0.33, IF(COUNTRY_INFO!$J28=2, COUNTRY_INFO!$F28*0.5, COUNTRY_INFO!$F28))), 0))","v":0},{"$f":"IF(INTRO!$E$43=\"Non-endemic\", 0, IF(COUNTRY_INFO!$J28>0, IF(COUNTRY_INFO!$J28=4, 0, IF(COUNTRY_INFO!$J28=1, 0, IF(COUNTRY_INFO!$J28=2, COUNTRY_INFO!$G28*0.2, COUNTRY_INFO!$G28))), 0))","v":0},0,{"$f":"IF(INTRO!$E$43=\"Non-endemic\", \"Not required\", COUNTRY_INFO!P28)","v":0},null,{"$f":"IF($D28=0,0,IF(AND($G28>0,$H28<>\"Yes\"),D28,IF(AND($G28>0,$H28=\"Yes\"),COUNTRY_INFO!$F28,0)))","v":0},null,0,0,0,0,0,null,0,0]
[{"$f":"IF(INTRO!$E$43=\"Non-endemic\",\" \", IF(COUNTRY_INFO!A29=0,\" \",COUNTRY_INFO!A29))","v":"Botswana"},{"$f":"IF(INTRO!$E$43=\"Non-endemic\",\" \", IF(COUNTRY_INFO!B29=0,\" \",COUNTRY_INFO!B29))","v":" "},{"$f":"IF(INTRO!$E$43=\"Non-endemic\",\" \", IF(COUNTRY_INFO!C29=0,\" \",COUNTRY_INFO!C29))","v":"SELIBE PHIKWE"},{"$f":"IF(INTRO!$E$43=\"Non-endemic\", 0, IF(COUNTRY_INFO!$J29>0, IF(COUNTRY_INFO!$J29=4, 0, IF(COUNTRY_INFO!$J29=1, COUNTRY_INFO!$F29*0.33, IF(COUNTRY_INFO!$J29=2, COUNTRY_INFO!$F29*0.5, COUNTRY_INFO!$F29))), 0))","v":0},{"$f":"IF(INTRO!$E$43=\"Non-endemic\", 0, IF(COUNTRY_INFO!$J29>0, IF(COUNTRY_INFO!$J29=4, 0, IF(COUNTRY_INFO!$J29=1, 0, IF(COUNTRY_INFO!$J29=2, COUNTRY_INFO!$G29*0.2, COUNTRY_INFO!$G29))), 0))","v":0},0,{"$f":"IF(INTRO!$E$43=\"Non-endemic\", \"Not required\", COUNTRY_INFO!P29)","v":0},null,{"$f":"IF($D29=0,0,IF(AND($G29>0,$H29<>\"Yes\"),D29,IF(AND($G29>0,$H29=\"Yes\"),COUNTRY_INFO!$F29,0)))","v":0},null,0,0,0,0,0,null,0,0]
[{"$f":"IF(INTRO!$E$43=\"Non-endemic\",\" \", IF(COUNTRY_INFO!A30=0,\" \",COUNTRY_INFO!A30))","v":"Botswana"},{"$f":"IF(INTRO!$E$43=\"Non-endemic\",\" \", IF(COUNTRY_INFO!B30=0,\" \",COUNTRY_INFO!B30))","v":" "},{"$f":"IF(INTRO!$E$43=\"Non-endemic\",\" \", IF(COUNTRY_INFO!C30=0,\" \",COUNTRY_INFO!C30))","v":"SEROWE / PALAPYE"},{"$f":"IF(INTRO!$E$43=\"Non-endemic\", 0, IF(COUNTRY_INFO!$J30>0, IF(COUNTRY_INFO!$J30=4, 0, IF(COUNTRY_INFO!$J30=1, COUNTRY_INFO!$F30*0.33, IF(COUNTRY_INFO!$J30=2, COUNTRY_INFO!$F30*0.5, COUNTRY_INFO!$F30))), 0))","v":0},{"$f":"IF(INTRO!$E$43=\"Non-endemic\", 0, IF(COUNTRY_INFO!$J30>0, IF(COUNTRY_INFO!$J30=4, 0, IF(COUNTRY_INFO!$J30=1, 0, IF(COUNTRY_INFO!$J30=2, COUNTRY_INFO!$G30*0.2, COUNTRY_INFO!$G30))), 0))","v":0},0,{"$f":"IF(INTRO!$E$43=\"Non-endemic\", \"Not required\", COUNTRY_INFO!P30)","v":0},null,{"$f":"IF($D30=0,0,IF(AND($G30>0,$H30<>\"Yes\"),D30,IF(AND($G30>0,$H30=\"Yes\"),COUNTRY_INFO!$F30,0)))","v":0},null,0,0,0,0,0,null,0,0]
[{"$f":"IF(INTRO!$E$43=\"Non-endemic\",\" \", IF(COUNTRY_INFO!A31=0,\" \",COUNTRY_INFO!A31))","v":"Botswana"},{"$f":"IF(INTRO!$E$43=\"Non-endemic\",\" \", IF(COUNTRY_INFO!B31=0,\" \",COUNTRY_INFO!B31))","v":" "},{"$f":"IF(INTRO!$E$43=\"Non-endemic\",\" \", IF(COUNTRY_INFO!C31=0,\" \",COUNTRY_INFO!C31))","v":"SOUTH EAST"},{"$f":"IF(INTRO!$E$43=\"Non-endemic\", 0, IF(COUNTRY_INFO!$J31>0, IF(COUNTRY_INFO!$J31=4, 0, IF(COUNTRY_INFO!$J31=1, COUNTRY_INFO!$F31*0.33, IF(COUNTRY_INFO!$J31=2, COUNTRY_INFO!$F31*0.5, COUNTRY_INFO!$F31))), 0))","v":0},{"$f":"IF(INTRO!$E$43=\"Non-endemic\", 0, IF(COUNTRY_INFO!$J31>0, IF(COUNTRY_INFO!$J31=4, 0, IF(COUNTRY_INFO!$J31=1, 0, IF(COUNTRY_INFO!$J31=2, COUNTRY_INFO!$G31*0.2, COUNTRY_INFO!$G31))), 0))","v":0},0,{"$f":"IF(INTRO!$E$43=\"Non-endemic\", \"Not required\", COUNTRY_INFO!P31)","v":0},null,{"$f":"IF($D31=0,0,IF(AND($G31>0,$H31<>\"Yes\"),D31,IF(AND($G31>0,$H31=\"Yes\"),COUNTRY_INFO!$F31,0)))","v":0},null,0,0,0,0,0,null,0,0]
[{"$f":"IF(INTRO!$E$43=\"Non-endemic\",\" \", IF(COUNTRY_INFO!A32=0,\" \",COUNTRY_INFO!A32))","v":"Botswana"},{"$f":"IF(INTRO!$E$43=\"Non-endemic\",\" \", IF(COUNTRY_INFO!B32=0,\" \",COUNTRY_INFO!B32))","v":" "},{"$f":"IF(INTRO!$E$43=\"Non-endemic\",\" \", IF(COUNTRY_INFO!C32=0,\" \",COUNTRY_INFO!C32))","v":"TUTUME"},{"$f":"IF(INTRO!$E$43=\"Non-endemic\", 0, IF(COUNTRY_INFO!$J32>0, IF(COUNTRY_INFO!$J32=4, 0, IF(COUNTRY_INFO!$J32=1, COUNTRY_INFO!$F32*0.33, IF(COUNTRY_INFO!$J32=2, COUNTRY_INFO!$F32*0.5, COUNTRY_INFO!$F32))), 0))","v":0},{"$f":"IF(INTRO!$E$43=\"Non-endemic\", 0, IF(COUNTRY_INFO!$J32>0, IF(COUNTRY_INFO!$J32=4, 0, IF(COUNTRY_INFO!$J32=1, 0, IF(COUNTRY_INFO!$J32=2, COUNTRY_INFO!$G32*0.2, COUNTRY_INFO!$G32))), 0))","v":0},0,{"$f":"IF(INTRO!$E$43=\"Non-endemic\", \"Not required\", COUNTRY_INFO!P32)","v":0},null,{"$f":"IF($D32=0,0,IF(AND($G32>0,$H32<>\"Yes\"),D32,IF(AND($G32>0,$H32=\"Yes\"),COUNTRY_INFO!$F32,0)))","v":0},null,0,0,0,0,0,null,0,0]

{"sheet":"SUMMARY","index":5,"n_rows":91,"n_cols":8,"rows_kept":91,"cut":false,"hidden":false,"merged":[[68,1,68,7],[59,1,59,7],[65,1,65,7],[90,1,90,7],[75,2,75,3],[78,1,78,7],[79,1,79,7],[72,2,72,3],[85,1,85,7],[89,1,89,7],[73,4,73,5],[76,2,76,3],[80,1,80,7],[73,2,73,3],[81,2,81,7],[82,2,82,7],[75,4,75,5],[72,4,72,5],[5,2,5,5],[84,1,84,7],[46,5,46,6],[47,5,47,6],[48,5,48,6],[76,4,76,5],[62,1,62,7],[9,1,10,1],[9,2,9,5],[9,6,9,7],[25,1,25,7],[50,5,50,6],[6,1,6,7],[21,2,24,5],[55,1,55,7],[30,2,30,3],[0,1,0,7],[1,1,1,7],[2,1,2,5],[3,1,3,7],[4,1,4,7],[30,4,30,5],[30,6,30,7],[40,5,40,6],[42,5,42,6],[41,5,41,6],[43,5,43,6],[54,1,54,7],[56,1,56,7],[57,1,57,7],[67,1,67,7],[49,5,49,6],[53,1,53,7],[61,1,61,7],[44,5,44,6],[45,5,45,6],[63,1,63,7],[64,1,64,7],[58,1,58,7]]}
[null,"The current version should be used in countries non-endemic for onchocerciasis"]
[null,"Joint request for selected PC medicines"]
[]
[null,"This form constitutes an official government request to WHO for the supply of the PC medicines. It can be submitted any time before 15 August of the current year for distribution of medicines during the following year, but at least 6-8 months before the planned PC intervention(s) to allow time for reviewing and approval of the request, placing order, manufacturing PC medicines and shipment to the country."]
[]
[null,"Country",{"$f":"IF(INTRO!$E$33<>0,INTRO!$E$33,\" \")","v":"Botswana"},null,null,null,"Year",{"$f":"IF(INTRO!$E$35<>0,INTRO!$E$35,\" \")","v":2017}]
[]
[null,"Information on PC medicines requested to WHO"]
[]
[null,"PC medicine","Number of tablets",null,null,null,"Total number of bottles"]
[null,null,"Required","In stock","In pipeline","Requested","Required","Requested"]
[null,"Albendazole for STH (SAC)",57238,66000,null,{"$f":"IF(C12>(D12+E12),C12-D12-E12, 0)","v":0},{"$f":"IF($C12=0,0, IF($B12=\"Albendazole for LF\", IF($C12=ALB_MBD!$I$4,ALB_MBD!$U$4,ROUNDUP($C12/200,0)), IF($B12=\"Albendazole for STH (SAC)\", IF($C12=ALB_MBD!$L$4,ALB_MBD!$X$4,ROUNDUP($C12/200,0)), IF($B12=\"Mebendazole (SAC)\", IF($C12=ALB_MBD!$P$4,ALB_MBD!$AA$4,ROUNDUP($C12/150,0)), IF($B12=\"Diethylcarbamazine citrate\", IF($C12=DEC!$J$4,DEC!$M$4,ROUNDUP($C12/1000,0)), IF($B12=\"Praziquantel (SAC)\", IF($C12=PZQ!$O$4,PZQ!$R$4,ROUNDUP($C12/1000,0))))))))","v":289},{"$f":"IF($F12=0,0,IF(OR($B12=\"Albendazole for LF\",$B12=\"Albendazole for STH (SAC)\"),$G12-ROUNDUP(($E12+$D12)/200,0),IF($B12=\"Mebendazole (SAC)\",$G12-ROUNDUP(($E12+$D12)/150,0),$G12-ROUNDUP(($E12+$D12)/1000,0))))","v":0}]
[null,null,null,null,null,0,{"$f":"IF($C13=0,0, IF($B13=\"Albendazole for LF\", IF($C13=ALB_MBD!$I$4,ALB_MBD!$U$4,ROUNDUP($C13/200,0)), IF($B13=\"Albendazole for STH (SAC)\", IF($C13=ALB_MBD!$L$4,ALB_MBD!$X$4,ROUNDUP($C13/200,0)), IF($B13=\"Mebendazole (SAC)\", IF($C13=ALB_MBD!$P$4,ALB_MBD!$AA$4,ROUNDUP($C13/150,0)), IF($B13=\"Diethylcarbamazine citrate\", IF($C13=DEC!$J$4,DEC!$M$4,ROUNDUP($C13/1000,0)), IF($B13=\"Praziquantel (SAC)\", IF($C13=PZQ!$O$4,PZQ!$R$4,ROUNDUP($C13/1000,0))))))))","v":0},0]
[null,null,null,null,null,0,{"$f":"IF($C14=0,0, IF($B14=\"Albendazole for LF\", IF($C14=ALB_MBD!$I$4,ALB_MBD!$U$4,ROUNDUP($C14/200,0)), IF($B14=\"Albendazole for STH (SAC)\", IF($C14=ALB_MBD!$L$4,ALB_MBD!$X$4,ROUNDUP($C14/200,0)), IF($B14=\"Mebendazole (SAC)\", IF($C14=ALB_MBD!$P$4,ALB_MBD!$AA$4,ROUNDUP($C14/150,0)), IF($B14=\"Diethylcarbamazine citrate\", IF($C14=DEC!$J$4,DEC!$M$4,ROUNDUP($C14/1000,0)), IF($B14=\"Praziquantel (SAC)\", IF($C14=PZQ!$O$4,PZQ!$R$4,ROUNDUP($C14/1000,0))))))))","v":0},0]
[null,null,null,null,null,0,{"$f":"IF($C15=0,0, IF($B15=\"Albendazole for LF\", IF($C15=ALB_MBD!$I$4,ALB_MBD!$U$4,ROUNDUP($C15/200,0)), IF($B15=\"Albendazole for STH (SAC)\", IF($C15=ALB_MBD!$L$4,ALB_MBD!$X$4,ROUNDUP($C15/200,0)), IF($B15=\"Mebendazole (SAC)\", IF($C15=ALB_MBD!$P$4,ALB_MBD!$AA$4,ROUNDUP($C15/150,0)), IF($B15=\"Diethylcarbamazine citrate\", IF($C15=DEC!$J$4,DEC!$M$4,ROUNDUP($C15/1000,0)), IF($B15=\"Praziquantel (SAC)\", IF($C15=PZQ!$O$4,PZQ!$R$4,ROUNDUP($C15/1000,0))))))))","v":0},0]
[null,null,null,null,null,0,{"$f":"IF($C16=0,0, IF($B16=\"Albendazole for LF\", IF($C16=ALB_MBD!$I$4,ALB_MBD!$U$4,ROUNDUP($C16/200,0)), IF($B16=\"Albendazole for STH (SAC)\", IF($C16=ALB_MBD!$L$4,ALB_MBD!$X$4,ROUNDUP($C16/200,0)), IF($B16=\"Mebendazole (SAC)\", IF($C16=ALB_MBD!$P$4,ALB_MBD!$AA$4,ROUNDUP($C16/150,0)), IF($B16=\"Diethylcarbamazine citrate\", IF($C16=DEC!$J$4,DEC!$M$4,ROUNDUP($C16/1000,0)), IF($B16=\"Praziquantel (SAC)\", IF($C16=PZQ!$O$4,PZQ!$R$4,ROUNDUP($C16/1000,0))))))))","v":0},0]
[null,null,null,null,null,0,{"$f":"IF($C17=0,0, IF($B17=\"Albendazole for LF\", IF($C17=ALB_MBD!$I$4,ALB_MBD!$U$4,ROUNDUP($C17/200,0)), IF($B17=\"Albendazole for STH (SAC)\", IF($C17=ALB_MBD!$L$4,ALB_MBD!$X$4,ROUNDUP($C17/200,0)), IF($B17=\"Mebendazole (SAC)\", IF($C17=ALB_MBD!$P$4,ALB_MBD!$AA$4,ROUNDUP($C17/150,0)), IF($B17=\"Diethylcarbamazine citrate\", IF($C17=DEC!$J$4,DEC!$M$4,ROUNDUP($C17/1000,0)), IF($B17=\"Praziquantel (SAC)\", IF($C17=PZQ!$O$4,PZQ!$R$4,ROUNDUP($C17/1000,0))))))))","v":0},0]
[]
[null,"Number of people to be treated with donated medicine ( see User Guide for details )"]
[]
[null,"Disease",null,null,null,null,"Round 1","Round 2"]
[null,"Soil-transmitted helminthiases","These figures are estimated only for targeted \nage groups to be treated with donated \nmedicines in areas where treatment for specific disease is required",null,null,null,2266,54972]
[]
[]
[]
[]
[]
[]
[null,"Information on planned PC interventions"]
[]
[null,"PC medicine","Planned date of the \n1st round of PC",null,"Planned date of the \n2nd round of PC",null,"Date by which the medicine \nshould arrive to the national warehouse"]
[null,"Albendazole for STH","February",2017,"August",2017,"December",2016]
[]
[]
[]
[]
[]
[]
[null,"Information on PC medicines for treatment of population not targeted with current donation through WHO"]
[]
[null,"PC medicine","Age group","# of people","# of tablets","Specify source",null,"Status"]
[]
[]
[]
[]
[]
[]
[]
[]
[]
[]
[]
[null,"Checklist"]
[null,"Submission"]
[null,"What should be submitted?"]
[null,"The supply of the requested medicines should be based on up-to-date epidemiological data, specific usage plans, and capacity for implementation. The following checklist ensures that all necessary forms and information are provided to WHO (in electronic format). "]
[null,"Joint request for selected PC medicines"]
[null,"Joint reporting form"]
[null,"PC epidemiological data reporting form"]
[]
[null,"Availability of funding for implementation"]
[]
[null,"Financial resources secured for the implementation in the year for which the medicines are requested"]
[null,"Ministry of Health will bear the cost of implementation of the Mass Drug Administration."]
[]
[]
[]
[null,"Who should fill in the form? "]
[null,"National NTD coordinator should compile all required information needed to complete the request form. In the absence of such a coordinator, specific programme managers should coordinate their respective part. The final single request must be approved by the Ministry of Health."]
[]
[null,"Information on person(s) who has filled in the form"]
[]
[null,"Title ","Name",null,"Phone",null,"Email","Date"]
[null,"NTD/PC Coordinator","Tuduetso L Monagen",null,2673632038,null,"tmonagen@gmail.com","2016-08-29"]
[null,"Data Manager","Sidney Otladisa Kololo",null,"00267 363 2757",null,"kolsid@gmail.com","2016-08-29"]
[]
[]
[]
[null,"The WHO recommends that all serious adverse events suspected to be associated with use of PC medicines should be reported in accordance with national Pharmacovigilance guidelines. In the absence of a national Pharmacovigilance system, contact the WHO Neglected Tropical Disease department for guidance."]
[null,"The WHO is committed to facilitate PC medicines donation with a free-of-charge supply of a) albendazole, mebendazole and praziquantel to the MoH’s national warehouse; and b) diethylcarbamazine citrate to the entry port/airport of recipient countries."]
[null,"The institution submitting the present request is responsible for a) arranging the offloading of the medicines from the truck and storing it in the national warehouse and subsequent shipment to the final distribution centres; b) for registering the donated medicine, if required, by the relevant national regulatory authorities; and c) for informing about any changes of their PC campaigns (e.g. postpone of the planned MDA date, replacement of NTD coordinator, etc.)."]
[null,"Name and signature of NTD coordinator or Ministry of Health representative","TUDUETSO LEKA MONAGEN                          "]
[null,"Date:","2016-08-29"]
[]
[null,"Please complete information on shipment and consignee in the workshsheet SHIPMENT"]
[null,"Please send the national request (signed and in electronic format) to the concerned WR with copy to:"]
[]
[null,"WHO headquarters","PC_JointForms@who.int"]
[null,"WHO Regional Office","Regional Advisor for NTD"]
[]
[null,"Please note that your request will be reviewed by an independent panel before approval. The information in this form, joint reporting form and PC epidemiological data reporting form are essential for WHO to ensure efficient usage of medicines. As part of its ongoing monitoring and evaluation activities, and to meet its contractual obligations to donors and other partners, WHO and its appointed agents reserve the right to periodically inspect stocks of the medicines at country level."]

{"sheet":"SHIPMENT","index":6,"n_rows":45,"n_cols":8,"rows_kept":45,"cut":false,"hidden":false,"merged":[[29,2,29,4],[29,5,29,7],[28,2,28,4],[16,5,16,7],[17,2,17,4],[16,2,16,4],[28,5,28,7],[22,5,22,7],[27,2,27,4],[27,5,27,7],[21,5,21,7],[22,2,22,4],[25,2,25,4],[25,5,25,7],[23,2,23,4],[23,5,23,7],[15,1,15,7],[14,2,14,4],[14,5,14,7],[17,5,17,7],[20,2,20,4],[20,5,20,7],[26,2,26,4],[18,5,18,7],[19,2,19,4],[19,5,19,7],[18,2,18,4],[26,5,26,7],[8,5,8,7],[13,2,13,4],[13,5,13,7],[12,2,12,4],[11,2,11,4],[38,1,38,6],[0,1,0,7],[1,1,1,7],[2,1,2,5],[11,5,11,7],[12,5,12,7],[6,1,6,7],[10,5,10,7],[9,5,9,7],[10,2,10,4],[3,2,3,5],[4,1,4,7],[9,2,9,4],[7,2,7,4],[7,5,7,7],[8,2,8,4],[37,1,37,5],[21,2,21,4],[46,1,56,7],[44,1,44,7],[30,2,30,4],[30,5,30,7],[31,2,31,4],[31,5,31,7],[32,2,32,4],[32,5,32,7],[35,1,35,7],[36,1,36,6],[39,1,39,7],[40,1,40,6],[41,1,41,6],[42,1,42,7]]}
[]
[null,"Joint request for selected PC medicines"]
[]
[null,"Country",{"$f":"IF(INTRO!$E$33<>0,INTRO!$E$33,\" \")","v":"Botswana"},null,null,null,"Year",{"$f":"IF(INTRO!$E$35<>0,INTRO!$E$35,\" \")","v":2017}]
[]
[null,"Information on shipment and consignee "]
[]
[null,null,"Consignee",null,null,"Delivery point / Final recipient\nif different from the consignee"]
[null,"Name"]
[null,"Department/Unit"]
[null,"Organization"]
[null,"Phone"]
[null,"Fax"]
[null,"E-mail"]
[null,"Mailing address"]
[]
[null,null,"Consignee",null,null,"Delivery point / Final recipient\nif different from the consignee"]
[null,"Name"]
[null,"Department/Unit"]
[null,"Organization"]
[null,"Phone"]
[null,"Fax"]
[null,"E-mail"]
[null,"Mailing address"]
[]
[null,null,"Consignee",null,null,"Delivery point / Final recipient\nif different from the consignee"]
[null,"Name"]
[null,"Department/Unit"]
[null,"Organization"]
[null,"Phone"]
[null,"Fax"]
[null,"E-mail"]
[null,"Mailing address"]
[]
[null,"Information on import requirements"]
[]
[null,"Is the Import Permit required?"]
[null,"How long does it take to obtain the Import Permit?"]
[null,"Do you require any documents to be submitted together with the Import Permit application?"]
[null,"If YES, please specify here"]
[null,"Does the consignee have to get customs clearance before the shipment can proceed?"]
[null,"Is there any additional information may be helpful in ensuring timely clearance and delivery of medicines to your country? "]
[null,"If YES, please specify here"]
[]
[null,"Additional information"]